Workbook

Sheet Parametrit
A1: Parametrit
A2: Lähtöosoite | B2: Liikekatu 24
A3: Lähtöpaikka | B3: TURKU
A4: ½-Päiväraha | B4: 20
A5: 1-Päiväraha | B5: 43
A6: Km-Raha | B6: 0.43

Sheet Asiakkaat
A1: Kohde | B1: Lähtöpaikka | C1: Osoite | D1: Paikka | E1: Km
A2: Firma Oy | B2: Liikekatu 24 | C2: Firmatie 24 | D2: TURKU | E2: 1.6
A3: Kauppa Oy | B3: Liikekatu 24 | C3: Kauppakatu 61 | D3: TURKU | E3: 12.45
A4: Tehdas Oy | B4: Liikekatu 24 | C4: Tehdaskatu 34 | D4: TURKU | E4: 14.29
A5: Yhtiö Oy | B5: Liikekatu 24 | C5: Yhtiönkatu 6 | D5: HELSINKI | E5: 165.39

Sheet Matkalasku
E1: Kilometrikorvaukset ja päivärahat
A2: Pvm | B2: Vkpv | C2: Lähtö | D2: Kohde | E2: Selite | F2: Osoite | G2: Paikka | H2: Km | I2: Km€ | J2: ½pv | K2: 1pv | L2: Pv€ | M2: Muu€ | N2: Summa
A3: 2014-01-07 | B3: =IF(A3<>"",IFERROR(WEEKDAY(A3),""),"") -> 1900-01-03 | C3: =IF(D3<>"",VLOOKUP(D3,Asiakkaat!$A$2:$E$244,2,FALSE),"") -> Liikekatu 24 | D3: Firma Oy | F3: =IF(D3<>"",VLOOKUP(D3,Asiakkaat!$A$2:$E$244,3,FALSE),"") -> Firmatie 24 | G3: =IF(D3<>"",VLOOKUP(D3,Asiakkaat!$A$2:$E$100,4,FALSE),"") -> TURKU | H3: =IF(D3<>"",VLOOKUP(D3,Asiakkaat!$A$2:$E$394,5,FALSE)*2,"") -> 3.2 | I3: =IF(D3<>"",H3*Parametrit!$B$6,"") -> 1.376 | L3: =IF((J3*Parametrit!$B$4)+(K3*Parametrit!$B$5)=0,"",(J3*Parametrit!$B$4)+(K3*Parametrit!$B$5)) ->  | N3: =IF(A3<>"",I3+(J3*Parametrit!$B$4)+(K3*Parametrit!$B$5)+M3,"") -> 1.376
A4: 2014-01-14 | B4: 1900-01-03 | C4: =IF(D4<>"",VLOOKUP(D4,Asiakkaat!$A$2:$E$244,2,FALSE),"") -> Liikekatu 24 | D4: Kauppa Oy | F4: =IF(D4<>"",VLOOKUP(D4,Asiakkaat!$A$2:$E$244,3,FALSE),"") -> Kauppakatu 61 | G4: =IF(D4<>"",VLOOKUP(D4,Asiakkaat!$A$2:$E$100,4,FALSE),"") -> TURKU | H4: =IF(D4<>"",VLOOKUP(D4,Asiakkaat!$A$2:$E$394,5,FALSE)*2,"") -> 24.9 | I4: =IF(D4<>"",H4*Parametrit!$B$6,"") -> 10.707 | J4: 1 | L4: =IF((J4*Parametrit!$B$4)+(K4*Parametrit!$B$5)=0,"",(J4*Parametrit!$B$4)+(K4*Parametrit!$B$5)) -> 20 | N4: =IF(A4<>"",I4+(J4*Parametrit!$B$4)+(K4*Parametrit!$B$5)+M4,"") -> 30.707
A5: 2014-01-15 | B5: 1900-01-04 | C5: =IF(D5<>"",VLOOKUP(D5,Asiakkaat!$A$2:$E$244,2,FALSE),"") -> Liikekatu 24 | D5: Tehdas Oy | F5: =IF(D5<>"",VLOOKUP(D5,Asiakkaat!$A$2:$E$244,3,FALSE),"") -> Tehdaskatu 34 | G5: =IF(D5<>"",VLOOKUP(D5,Asiakkaat!$A$2:$E$100,4,FALSE),"") -> TURKU | H5: =IF(D5<>"",VLOOKUP(D5,Asiakkaat!$A$2:$E$394,5,FALSE)*2,"") -> 28.58 | I5: =IF(D5<>"",H5*Parametrit!$B$6,"") -> 12.2894 | L5: =IF((J5*Parametrit!$B$4)+(K5*Parametrit!$B$5)=0,"",(J5*Parametrit!$B$4)+(K5*Parametrit!$B$5)) ->  | N5: =IF(A5<>"",I5+(J5*Parametrit!$B$4)+(K5*Parametrit!$B$5)+M5,"") -> 12.2894
A6: 2014-01-15 | B6: 1900-01-04 | C6: =IF(D6<>"",VLOOKUP(D6,Asiakkaat!$A$2:$E$244,2,FALSE),"") -> Liikekatu 24 | D6: Yhtiö Oy | F6: =IF(D6<>"",VLOOKUP(D6,Asiakkaat!$A$2:$E$244,3,FALSE),"") -> Yhtiönkatu 6 | G6: =IF(D6<>"",VLOOKUP(D6,Asiakkaat!$A$2:$E$100,4,FALSE),"") -> HELSINKI | H6: =IF(D6<>"",VLOOKUP(D6,Asiakkaat!$A$2:$E$394,5,FALSE)*2,"") -> 330.78 | I6: =IF(D6<>"",H6*Parametrit!$B$6,"") -> 142.2354 | K6: 2 | L6: =IF((J6*Parametrit!$B$4)+(K6*Parametrit!$B$5)=0,"",(J6*Parametrit!$B$4)+(K6*Parametrit!$B$5)) -> 86 | N6: =IF(A6<>"",I6+(J6*Parametrit!$B$4)+(K6*Parametrit!$B$5)+M6,"") -> 228.2354
A7: 2014-01-17 | B7: 1900-01-06 | C7: =IF(D7<>"",VLOOKUP(D7,Asiakkaat!$A$2:$E$244,2,FALSE),"") -> Liikekatu 24 | D7: Kauppa Oy | F7: =IF(D7<>"",VLOOKUP(D7,Asiakkaat!$A$2:$E$244,3,FALSE),"") -> Kauppakatu 61 | G7: =IF(D7<>"",VLOOKUP(D7,Asiakkaat!$A$2:$E$100,4,FALSE),"") -> TURKU | H7: =IF(D7<>"",VLOOKUP(D7,Asiakkaat!$A$2:$E$394,5,FALSE)*2,"") -> 24.9 | I7: =IF(D7<>"",H7*Parametrit!$B$6,"") -> 10.707 | L7: =IF((J7*Parametrit!$B$4)+(K7*Parametrit!$B$5)=0,"",(J7*Parametrit!$B$4)+(K7*Parametrit!$B$5)) ->  | N7: =IF(A7<>"",I7+(J7*Parametrit!$B$4)+(K7*Parametrit!$B$5)+M7,"") -> 10.707
A8: 2014-01-17 | B8: 1900-01-06 | C8: =IF(D8<>"",VLOOKUP(D8,Asiakkaat!$A$2:$E$244,2,FALSE),"") -> Liikekatu 24 | D8: Firma Oy | F8: =IF(D8<>"",VLOOKUP(D8,Asiakkaat!$A$2:$E$244,3,FALSE),"") -> Firmatie 24 | G8: =IF(D8<>"",VLOOKUP(D8,Asiakkaat!$A$2:$E$100,4,FALSE),"") -> TURKU | H8: =IF(D8<>"",VLOOKUP(D8,Asiakkaat!$A$2:$E$394,5,FALSE)*2,"") -> 3.2 | I8: =IF(D8<>"",H8*Parametrit!$B$6,"") -> 1.376 | L8: =IF((J8*Parametrit!$B$4)+(K8*Parametrit!$B$5)=0,"",(J8*Parametrit!$B$4)+(K8*Parametrit!$B$5)) ->  | N8: =IF(A8<>"",I8+(J8*Parametrit!$B$4)+(K8*Parametrit!$B$5)+M8,"") -> 1.376
A9: 2014-01-17 | B9: 1900-01-06 | C9: =IF(D9<>"",VLOOKUP(D9,Asiakkaat!$A$2:$E$244,2,FALSE),"") -> Liikekatu 24 | D9: Yhtiö Oy | F9: =IF(D9<>"",VLOOKUP(D9,Asiakkaat!$A$2:$E$244,3,FALSE),"") -> Yhtiönkatu 6 | G9: =IF(D9<>"",VLOOKUP(D9,Asiakkaat!$A$2:$E$100,4,FALSE),"") -> HELSINKI | H9: =IF(D9<>"",VLOOKUP(D9,Asiakkaat!$A$2:$E$394,5,FALSE)*2,"") -> 330.78 | I9: =IF(D9<>"",H9*Parametrit!$B$6,"") -> 142.2354 | K9: 2 | L9: =IF((J9*Parametrit!$B$4)+(K9*Parametrit!$B$5)=0,"",(J9*Parametrit!$B$4)+(K9*Parametrit!$B$5)) -> 86 | N9: =IF(A9<>"",I9+(J9*Parametrit!$B$4)+(K9*Parametrit!$B$5)+M9,"") -> 228.2354
A10: 2014-01-21 | B10: 1900-01-03 | C10: =IF(D10<>"",VLOOKUP(D10,Asiakkaat!$A$2:$E$244,2,FALSE),"") -> Liikekatu 24 | D10: Tehdas Oy | F10: =IF(D10<>"",VLOOKUP(D10,Asiakkaat!$A$2:$E$244,3,FALSE),"") -> Tehdaskatu 34 | G10: =IF(D10<>"",VLOOKUP(D10,Asiakkaat!$A$2:$E$100,4,FALSE),"") -> TURKU | H10: =IF(D10<>"",VLOOKUP(D10,Asiakkaat!$A$2:$E$394,5,FALSE)*2,"") -> 28.58 | I10: =IF(D10<>"",H10*Parametrit!$B$6,"") -> 12.2894 | L10: =IF((J10*Parametrit!$B$4)+(K10*Parametrit!$B$5)=0,"",(J10*Parametrit!$B$4)+(K10*Parametrit!$B$5)) ->  | N10: =IF(A10<>"",I10+(J10*Parametrit!$B$4)+(K10*Parametrit!$B$5)+M10,"") -> 12.2894
C11: =IF(D11<>"",VLOOKUP(D11,Asiakkaat!$A$2:$E$244,2,FALSE),"") ->  | F11: =IF(D11<>"",VLOOKUP(D11,Asiakkaat!$A$2:$E$244,3,FALSE),"") ->  | G11: =IF(D11<>"",VLOOKUP(D11,Asiakkaat!$A$2:$E$100,4,FALSE),"") ->  | H11: =IF(D11<>"",VLOOKUP(D11,Asiakkaat!$A$2:$E$394,5,FALSE)*2,"") ->  | I11: =IF(D11<>"",H11*Parametrit!$B$6,"") ->  | L11: =IF((J11*Parametrit!$B$4)+(K11*Parametrit!$B$5)=0,"",(J11*Parametrit!$B$4)+(K11*Parametrit!$B$5)) ->  | N11: =IF(A11<>"",I11+(J11*Parametrit!$B$4)+(K11*Parametrit!$B$5)+M11,"") -> 
C12: =IF(D12<>"",VLOOKUP(D12,Asiakkaat!$A$2:$E$244,2,FALSE),"") ->  | F12: =IF(D12<>"",VLOOKUP(D12,Asiakkaat!$A$2:$E$244,3,FALSE),"") ->  | G12: =IF(D12<>"",VLOOKUP(D12,Asiakkaat!$A$2:$E$100,4,FALSE),"") ->  | H12: =IF(D12<>"",VLOOKUP(D12,Asiakkaat!$A$2:$E$394,5,FALSE)*2,"") ->  | I12: =IF(D12<>"",H12*Parametrit!$B$6,"") ->  | L12: =IF((J12*Parametrit!$B$4)+(K12*Parametrit!$B$5)=0,"",(J12*Parametrit!$B$4)+(K12*Parametrit!$B$5)) ->  | N12: =IF(A12<>"",I12+(J12*Parametrit!$B$4)+(K12*Parametrit!$B$5)+M12,"") -> 
C13: =IF(D13<>"",VLOOKUP(D13,Asiakkaat!$A$2:$E$244,2,FALSE),"") ->  | F13: =IF(D13<>"",VLOOKUP(D13,Asiakkaat!$A$2:$E$244,3,FALSE),"") ->  | G13: =IF(D13<>"",VLOOKUP(D13,Asiakkaat!$A$2:$E$100,4,FALSE),"") ->  | H13: =IF(D13<>"",VLOOKUP(D13,Asiakkaat!$A$2:$E$394,5,FALSE)*2,"") ->  | I13: =IF(H13<>"",H13*Parametrit!$B$6,"") ->  | L13: =IF((J13*Parametrit!$B$4)+(K13*Parametrit!$B$5)=0,"",(J13*Parametrit!$B$4)+(K13*Parametrit!$B$5)) ->  | N13: =IF(A13<>"",I13+(J13*Parametrit!$B$4)+(K13*Parametrit!$B$5)+M13,"") -> 
C14: =IF(D14<>"",VLOOKUP(D14,Asiakkaat!$A$2:$E$244,2,FALSE),"") ->  | F14: =IF(D14<>"",VLOOKUP(D14,Asiakkaat!$A$2:$E$244,3,FALSE),"") ->  | G14: =IF(D14<>"",VLOOKUP(D14,Asiakkaat!$A$2:$E$100,4,FALSE),"") ->  | H14: =IF(D14<>"",VLOOKUP(D14,Asiakkaat!$A$2:$E$394,5,FALSE)*2,"") ->  | I14: =IF(D14<>"",H14*Parametrit!$B$6,"") ->  | L14: =IF((J14*Parametrit!$B$4)+(K14*Parametrit!$B$5)=0,"",(J14*Parametrit!$B$4)+(K14*Parametrit!$B$5)) ->  | N14: =IF(A14<>"",I14+(J14*Parametrit!$B$4)+(K14*Parametrit!$B$5)+M14,"") -> 
C15: =IF(D15<>"",VLOOKUP(D15,Asiakkaat!$A$2:$E$244,2,FALSE),"") ->  | F15: =IF(D15<>"",VLOOKUP(D15,Asiakkaat!$A$2:$E$244,3,FALSE),"") ->  | G15: =IF(D15<>"",VLOOKUP(D15,Asiakkaat!$A$2:$E$100,4,FALSE),"") ->  | H15: =IF(D15<>"",VLOOKUP(D15,Asiakkaat!$A$2:$E$394,5,FALSE)*2,"") ->  | I15: =IF(D15<>"",H15*Parametrit!$B$6,"") ->  | L15: =IF((J15*Parametrit!$B$4)+(K15*Parametrit!$B$5)=0,"",(J15*Parametrit!$B$4)+(K15*Parametrit!$B$5)) ->  | N15: =IF(A15<>"",I15+(J15*Parametrit!$B$4)+(K15*Parametrit!$B$5)+M15,"") -> 
C16: =IF(D16<>"",VLOOKUP(D16,Asiakkaat!$A$2:$E$244,2,FALSE),"") ->  | F16: =IF(D16<>"",VLOOKUP(D16,Asiakkaat!$A$2:$E$244,3,FALSE),"") ->  | G16: =IF(D16<>"",VLOOKUP(D16,Asiakkaat!$A$2:$E$100,4,FALSE),"") ->  | H16: =IF(D16<>"",VLOOKUP(D16,Asiakkaat!$A$2:$E$394,5,FALSE)*2,"") ->  | I16: =IFERROR(H16*Parametrit!$B$6,"") ->  | L16: =IF((J16*Parametrit!$B$4)+(K16*Parametrit!$B$5)=0,"",(J16*Parametrit!$B$4)+(K16*Parametrit!$B$5)) ->  | N16: =IF(A16<>"",I16+(J16*Parametrit!$B$4)+(K16*Parametrit!$B$5)+M16,"") -> 
C17: =IF(D17<>"",VLOOKUP(D17,Asiakkaat!$A$2:$E$244,2,FALSE),"") ->  | F17: =IF(D17<>"",VLOOKUP(D17,Asiakkaat!$A$2:$E$244,3,FALSE),"") ->  | G17: =IF(D17<>"",VLOOKUP(D17,Asiakkaat!$A$2:$E$100,4,FALSE),"") ->  | H17: =IF(D17<>"",VLOOKUP(D17,Asiakkaat!$A$2:$E$394,5,FALSE)*2,"") ->  | I17: =IF(D17<>"",H17*Parametrit!$B$6,"") ->  | L17: =IF((J17*Parametrit!$B$4)+(K17*Parametrit!$B$5)=0,"",(J17*Parametrit!$B$4)+(K17*Parametrit!$B$5)) ->  | N17: =IF(A17<>"",I17+(J17*Parametrit!$B$4)+(K17*Parametrit!$B$5)+M17,"") -> 
C18: =IF(D18<>"",VLOOKUP(D18,Asiakkaat!$A$2:$E$244,2,FALSE),"") ->  | F18: =IF(D18<>"",VLOOKUP(D18,Asiakkaat!$A$2:$E$244,3,FALSE),"") ->  | G18: =IF(D18<>"",VLOOKUP(D18,Asiakkaat!$A$2:$E$100,4,FALSE),"") ->  | H18: =IF(D18<>"",VLOOKUP(D18,Asiakkaat!$A$2:$E$394,5,FALSE)*2,"") ->  | I18: =IF(D18<>"",H18*Parametrit!$B$6,"") ->  | L18: =IF((J18*Parametrit!$B$4)+(K18*Parametrit!$B$5)=0,"",(J18*Parametrit!$B$4)+(K18*Parametrit!$B$5)) ->  | N18: =IF(A18<>"",I18+(J18*Parametrit!$B$4)+(K18*Parametrit!$B$5)+M18,"") -> 
C19: =IF(D19<>"",VLOOKUP(D19,Asiakkaat!$A$2:$E$244,2,FALSE),"") ->  | F19: =IF(D19<>"",VLOOKUP(D19,Asiakkaat!$A$2:$E$244,3,FALSE),"") ->  | G19: =IF(D19<>"",VLOOKUP(D19,Asiakkaat!$A$2:$E$100,4,FALSE),"") ->  | H19: =IF(D19<>"",VLOOKUP(D19,Asiakkaat!$A$2:$E$394,5,FALSE)*2,"") ->  | I19: =IF(D19<>"",H19*Parametrit!$B$6,"") ->  | L19: =IF((J19*Parametrit!$B$4)+(K19*Parametrit!$B$5)=0,"",(J19*Parametrit!$B$4)+(K19*Parametrit!$B$5)) ->  | N19: =IF(A19<>"",I19+(J19*Parametrit!$B$4)+(K19*Parametrit!$B$5)+M19,"") -> 
C20: =IF(D20<>"",VLOOKUP(D20,Asiakkaat!$A$2:$E$244,2,FALSE),"") ->  | F20: =IF(D20<>"",VLOOKUP(D20,Asiakkaat!$A$2:$E$244,3,FALSE),"") ->  | G20: =IF(D20<>"",VLOOKUP(D20,Asiakkaat!$A$2:$E$100,4,FALSE),"") ->  | H20: =IF(D20<>"",VLOOKUP(D20,Asiakkaat!$A$2:$E$394,5,FALSE)*2,"") ->  | I20: =IF(D20<>"",H20*Parametrit!$B$6,"") ->  | L20: =IF((J20*Parametrit!$B$4)+(K20*Parametrit!$B$5)=0,"",(J20*Parametrit!$B$4)+(K20*Parametrit!$B$5)) ->  | N20: =IF(A20<>"",I20+(J20*Parametrit!$B$4)+(K20*Parametrit!$B$5)+M20,"") -> 
C21: =IF(D21<>"",VLOOKUP(D21,Asiakkaat!$A$2:$E$244,2,FALSE),"") ->  | F21: =IF(D21<>"",VLOOKUP(D21,Asiakkaat!$A$2:$E$244,3,FALSE),"") ->  | G21: =IF(D21<>"",VLOOKUP(D21,Asiakkaat!$A$2:$E$100,4,FALSE),"") ->  | H21: =IF(D21<>"",VLOOKUP(D21,Asiakkaat!$A$2:$E$394,5,FALSE)*2,"") ->  | I21: =IF(D21<>"",H21*Parametrit!$B$6,"") ->  | L21: =IF((J21*Parametrit!$B$4)+(K21*Parametrit!$B$5)=0,"",(J21*Parametrit!$B$4)+(K21*Parametrit!$B$5)) ->  | N21: =IF(A21<>"",I21+(J21*Parametrit!$B$4)+(K21*Parametrit!$B$5)+M21,"") -> 
C22: =IF(D22<>"",VLOOKUP(D22,Asiakkaat!$A$2:$E$244,2,FALSE),"") ->  | F22: =IF(D22<>"",VLOOKUP(D22,Asiakkaat!$A$2:$E$244,3,FALSE),"") ->  | G22: =IF(D22<>"",VLOOKUP(D22,Asiakkaat!$A$2:$E$100,4,FALSE),"") ->  | H22: =IF(D22<>"",VLOOKUP(D22,Asiakkaat!$A$2:$E$394,5,FALSE)*2,"") ->  | I22: =IF(D22<>"",H22*Parametrit!$B$6,"") ->  | L22: =IF((J22*Parametrit!$B$4)+(K22*Parametrit!$B$5)=0,"",(J22*Parametrit!$B$4)+(K22*Parametrit!$B$5)) ->  | N22: =IF(A22<>"",I22+(J22*Parametrit!$B$4)+(K22*Parametrit!$B$5)+M22,"") -> 
B23: =IF(A23<>"",IFERROR(WEEKDAY(A23),""),"") ->  | C23: =IF(D23<>"",VLOOKUP(D23,Asiakkaat!$A$2:$E$244,2,FALSE),"") ->  | F23: =IF(D23<>"",VLOOKUP(D23,Asiakkaat!$A$2:$E$244,3,FALSE),"") ->  | G23: =IF(D23<>"",VLOOKUP(D23,Asiakkaat!$A$2:$E$100,4,FALSE),"") ->  | H23: =IF(D23<>"",VLOOKUP(D23,Asiakkaat!$A$2:$E$394,5,FALSE)*2,"") ->  | I23: =IF(D23<>"",H23*Parametrit!$B$6,"") ->  | L23: =IF((J23*Parametrit!$B$4)+(K23*Parametrit!$B$5)=0,"",(J23*Parametrit!$B$4)+(K23*Parametrit!$B$5)) ->  | N23: =IF(A23<>"",I23+(J23*Parametrit!$B$4)+(K23*Parametrit!$B$5)+M23,"") -> 
C24: =IF(D24<>"",VLOOKUP(D24,Asiakkaat!$A$2:$E$244,2,FALSE),"") ->  | F24: =IF(D24<>"",VLOOKUP(D24,Asiakkaat!$A$2:$E$244,3,FALSE),"") ->  | G24: =IF(D24<>"",VLOOKUP(D24,Asiakkaat!$A$2:$E$100,4,FALSE),"") ->  | H24: =IF(D24<>"",VLOOKUP(D24,Asiakkaat!$A$2:$E$394,5,FALSE)*2,"") ->  | I24: =IF(D24<>"",H24*Parametrit!$B$6,"") ->  | L24: =IF((J24*Parametrit!$B$4)+(K24*Parametrit!$B$5)=0,"",(J24*Parametrit!$B$4)+(K24*Parametrit!$B$5)) ->  | N24: =IF(A24<>"",I24+(J24*Parametrit!$B$4)+(K24*Parametrit!$B$5)+M24,"") -> 
C25: =IF(D25<>"",VLOOKUP(D25,Asiakkaat!$A$2:$E$244,2,FALSE),"") ->  | F25: =IF(D25<>"",VLOOKUP(D25,Asiakkaat!$A$2:$E$244,3,FALSE),"") ->  | G25: =IF(D25<>"",VLOOKUP(D25,Asiakkaat!$A$2:$E$100,4,FALSE),"") ->  | H25: =IF(D25<>"",VLOOKUP(D25,Asiakkaat!$A$2:$E$394,5,FALSE)*2,"") ->  | I25: =IF(D25<>"",H25*Parametrit!$B$6,"") ->  | L25: =IF((J25*Parametrit!$B$4)+(K25*Parametrit!$B$5)=0,"",(J25*Parametrit!$B$4)+(K25*Parametrit!$B$5)) ->  | N25: =IF(A25<>"",I25+(J25*Parametrit!$B$4)+(K25*Parametrit!$B$5)+M25,"") -> 
C26: =IF(D26<>"",VLOOKUP(D26,Asiakkaat!$A$2:$E$244,2,FALSE),"") ->  | F26: =IF(D26<>"",VLOOKUP(D26,Asiakkaat!$A$2:$E$244,3,FALSE),"") ->  | G26: =IF(D26<>"",VLOOKUP(D26,Asiakkaat!$A$2:$E$100,4,FALSE),"") ->  | H26: =IF(D26<>"",VLOOKUP(D26,Asiakkaat!$A$2:$E$394,5,FALSE)*2,"") ->  | I26: =IF(D26<>"",H26*Parametrit!$B$6,"") ->  | L26: =IF((J26*Parametrit!$B$4)+(K26*Parametrit!$B$5)=0,"",(J26*Parametrit!$B$4)+(K26*Parametrit!$B$5)) ->  | N26: =IF(A26<>"",I26+(J26*Parametrit!$B$4)+(K26*Parametrit!$B$5)+M26,"") -> 
C27: =IF(D27<>"",VLOOKUP(D27,Asiakkaat!$A$2:$E$244,2,FALSE),"") ->  | F27: =IF(D27<>"",VLOOKUP(D27,Asiakkaat!$A$2:$E$244,3,FALSE),"") ->  | G27: =IF(D27<>"",VLOOKUP(D27,Asiakkaat!$A$2:$E$100,4,FALSE),"") ->  | H27: =IF(D27<>"",VLOOKUP(D27,Asiakkaat!$A$2:$E$394,5,FALSE)*2,"") ->  | I27: =IF(D27<>"",H27*Parametrit!$B$6,"") ->  | L27: =IF((J27*Parametrit!$B$4)+(K27*Parametrit!$B$5)=0,"",(J27*Parametrit!$B$4)+(K27*Parametrit!$B$5)) ->  | N27: =IF(A27<>"",I27+(J27*Parametrit!$B$4)+(K27*Parametrit!$B$5)+M27,"") -> 
C28: =IF(D28<>"",VLOOKUP(D28,Asiakkaat!$A$2:$E$244,2,FALSE),"") ->  | F28: =IF(D28<>"",VLOOKUP(D28,Asiakkaat!$A$2:$E$244,3,FALSE),"") ->  | G28: =IF(D28<>"",VLOOKUP(D28,Asiakkaat!$A$2:$E$100,4,FALSE),"") ->  | H28: =IF(D28<>"",VLOOKUP(D28,Asiakkaat!$A$2:$E$394,5,FALSE)*2,"") ->  | I28: =IF(D28<>"",H28*Parametrit!$B$6,"") ->  | L28: =IF((J28*Parametrit!$B$4)+(K28*Parametrit!$B$5)=0,"",(J28*Parametrit!$B$4)+(K28*Parametrit!$B$5)) ->  | N28: =IF(A28<>"",I28+(J28*Parametrit!$B$4)+(K28*Parametrit!$B$5)+M28,"") -> 
C29: =IF(D29<>"",VLOOKUP(D29,Asiakkaat!$A$2:$E$244,2,FALSE),"") ->  | F29: =IF(D29<>"",VLOOKUP(D29,Asiakkaat!$A$2:$E$244,3,FALSE),"") ->  | G29: =IF(D29<>"",VLOOKUP(D29,Asiakkaat!$A$2:$E$100,4,FALSE),"") ->  | H29: =IF(D29<>"",VLOOKUP(D29,Asiakkaat!$A$2:$E$394,5,FALSE)*2,"") ->  | I29: =IF(D29<>"",H29*Parametrit!$B$6,"") ->  | L29: =IF((J29*Parametrit!$B$4)+(K29*Parametrit!$B$5)=0,"",(J29*Parametrit!$B$4)+(K29*Parametrit!$B$5)) ->  | N29: =IF(A29<>"",I29+(J29*Parametrit!$B$4)+(K29*Parametrit!$B$5)+M29,"") -> 
C30: =IF(D30<>"",VLOOKUP(D30,Asiakkaat!$A$2:$E$244,2,FALSE),"") ->  | F30: =IF(D30<>"",VLOOKUP(D30,Asiakkaat!$A$2:$E$244,3,FALSE),"") ->  | G30: =IF(D30<>"",VLOOKUP(D30,Asiakkaat!$A$2:$E$100,4,FALSE),"") ->  | H30: =IF(D30<>"",VLOOKUP(D30,Asiakkaat!$A$2:$E$394,5,FALSE)*2,"") ->  | I30: =IF(D30<>"",H30*Parametrit!$B$6,"") ->  | L30: =IF((J30*Parametrit!$B$4)+(K30*Parametrit!$B$5)=0,"",(J30*Parametrit!$B$4)+(K30*Parametrit!$B$5)) ->  | N30: =IF(A30<>"",I30+(J30*Parametrit!$B$4)+(K30*Parametrit!$B$5)+M30,"") -> 
C31: =IF(D31<>"",VLOOKUP(D31,Asiakkaat!$A$2:$E$244,2,FALSE),"") ->  | F31: =IF(D31<>"",VLOOKUP(D31,Asiakkaat!$A$2:$E$244,3,FALSE),"") ->  | G31: =IF(D31<>"",VLOOKUP(D31,Asiakkaat!$A$2:$E$100,4,FALSE),"") ->  | H31: =IF(D31<>"",VLOOKUP(D31,Asiakkaat!$A$2:$E$394,5,FALSE)*2,"") ->  | I31: =IF(D31<>"",H31*Parametrit!$B$6,"") ->  | L31: =IF((J31*Parametrit!$B$4)+(K31*Parametrit!$B$5)=0,"",(J31*Parametrit!$B$4)+(K31*Parametrit!$B$5)) ->  | N31: =IF(A31<>"",I31+(J31*Parametrit!$B$4)+(K31*Parametrit!$B$5)+M31,"") -> 
C32: =IF(D32<>"",VLOOKUP(D32,Asiakkaat!$A$2:$E$244,2,FALSE),"") ->  | F32: =IF(D32<>"",VLOOKUP(D32,Asiakkaat!$A$2:$E$244,3,FALSE),"") ->  | G32: =IF(D32<>"",VLOOKUP(D32,Asiakkaat!$A$2:$E$100,4,FALSE),"") ->  | H32: =IF(D32<>"",VLOOKUP(D32,Asiakkaat!$A$2:$E$394,5,FALSE)*2,"") ->  | I32: =IF(D32<>"",H32*Parametrit!$B$6,"") ->  | L32: =IF((J32*Parametrit!$B$4)+(K32*Parametrit!$B$5)=0,"",(J32*Parametrit!$B$4)+(K32*Parametrit!$B$5)) ->  | N32: =IF(A32<>"",I32+(J32*Parametrit!$B$4)+(K32*Parametrit!$B$5)+M32,"") -> 
C33: =IF(D33<>"",VLOOKUP(D33,Asiakkaat!$A$2:$E$244,2,FALSE),"") ->  | F33: =IF(D33<>"",VLOOKUP(D33,Asiakkaat!$A$2:$E$244,3,FALSE),"") ->  | G33: =IF(D33<>"",VLOOKUP(D33,Asiakkaat!$A$2:$E$100,4,FALSE),"") ->  | H33: =IF(D33<>"",VLOOKUP(D33,Asiakkaat!$A$2:$E$394,5,FALSE)*2,"") ->  | I33: =IF(D33<>"",H33*Parametrit!$B$6,"") ->  | L33: =IF((J33*Parametrit!$B$4)+(K33*Parametrit!$B$5)=0,"",(J33*Parametrit!$B$4)+(K33*Parametrit!$B$5)) ->  | N33: =IF(A33<>"",I33+(J33*Parametrit!$B$4)+(K33*Parametrit!$B$5)+M33,"") -> 
C34: =IF(D34<>"",VLOOKUP(D34,Asiakkaat!$A$2:$E$244,2,FALSE),"") ->  | F34: =IF(D34<>"",VLOOKUP(D34,Asiakkaat!$A$2:$E$244,3,FALSE),"") ->  | G34: =IF(D34<>"",VLOOKUP(D34,Asiakkaat!$A$2:$E$100,4,FALSE),"") ->  | H34: =IF(D34<>"",VLOOKUP(D34,Asiakkaat!$A$2:$E$394,5,FALSE)*2,"") ->  | I34: =IF(D34<>"",H34*Parametrit!$B$6,"") ->  | L34: =IF((J34*Parametrit!$B$4)+(K34*Parametrit!$B$5)=0,"",(J34*Parametrit!$B$4)+(K34*Parametrit!$B$5)) ->  | N34: =IF(A34<>"",I34+(J34*Parametrit!$B$4)+(K34*Parametrit!$B$5)+M34,"") -> 
B35: =IF(A35<>"",IFERROR(WEEKDAY(A35),""),"") ->  | C35: =IF(D35<>"",VLOOKUP(D35,Asiakkaat!$A$2:$E$244,2,FALSE),"") ->  | F35: =IF(D35<>"",VLOOKUP(D35,Asiakkaat!$A$2:$E$244,3,FALSE),"") ->  | G35: =IF(D35<>"",VLOOKUP(D35,Asiakkaat!$A$2:$E$100,4,FALSE),"") ->  | H35: =IF(D35<>"",VLOOKUP(D35,Asiakkaat!$A$2:$E$394,5,FALSE)*2,"") ->  | I35: =IF(D35<>"",H35*Parametrit!$B$6,"") ->  | L35: =IF((J35*Parametrit!$B$4)+(K35*Parametrit!$B$5)=0,"",(J35*Parametrit!$B$4)+(K35*Parametrit!$B$5)) ->  | N35: =IF(A35<>"",I35+(J35*Parametrit!$B$4)+(K35*Parametrit!$B$5)+M35,"") -> 
C36: =IF(D36<>"",VLOOKUP(D36,Asiakkaat!$A$2:$E$244,2,FALSE),"") ->  | F36: =IF(D36<>"",VLOOKUP(D36,Asiakkaat!$A$2:$E$244,3,FALSE),"") ->  | G36: =IF(D36<>"",VLOOKUP(D36,Asiakkaat!$A$2:$E$100,4,FALSE),"") ->  | H36: =IF(D36<>"",VLOOKUP(D36,Asiakkaat!$A$2:$E$394,5,FALSE)*2,"") ->  | I36: =IF(D36<>"",H36*Parametrit!$B$6,"") ->  | L36: =IF((J36*Parametrit!$B$4)+(K36*Parametrit!$B$5)=0,"",(J36*Parametrit!$B$4)+(K36*Parametrit!$B$5)) ->  | N36: =IF(A36<>"",I36+(J36*Parametrit!$B$4)+(K36*Parametrit!$B$5)+M36,"") -> 
C37: =IF(D37<>"",VLOOKUP(D37,Asiakkaat!$A$2:$E$244,2,FALSE),"") ->  | F37: =IF(D37<>"",VLOOKUP(D37,Asiakkaat!$A$2:$E$244,3,FALSE),"") ->  | G37: =IF(D37<>"",VLOOKUP(D37,Asiakkaat!$A$2:$E$100,4,FALSE),"") ->  | H37: =IF(D37<>"",VLOOKUP(D37,Asiakkaat!$A$2:$E$394,5,FALSE)*2,"") ->  | I37: =IF(D37<>"",H37*Parametrit!$B$6,"") ->  | L37: =IF((J37*Parametrit!$B$4)+(K37*Parametrit!$B$5)=0,"",(J37*Parametrit!$B$4)+(K37*Parametrit!$B$5)) ->  | N37: =IF(A37<>"",I37+(J37*Parametrit!$B$4)+(K37*Parametrit!$B$5)+M37,"") -> 
C38: =IF(D38<>"",VLOOKUP(D38,Asiakkaat!$A$2:$E$244,2,FALSE),"") ->  | F38: =IF(D38<>"",VLOOKUP(D38,Asiakkaat!$A$2:$E$244,3,FALSE),"") ->  | G38: =IF(D38<>"",VLOOKUP(D38,Asiakkaat!$A$2:$E$100,4,FALSE),"") ->  | H38: =IF(D38<>"",VLOOKUP(D38,Asiakkaat!$A$2:$E$394,5,FALSE)*2,"") ->  | I38: =IF(D38<>"",H38*Parametrit!$B$6,"") ->  | L38: =IF((J38*Parametrit!$B$4)+(K38*Parametrit!$B$5)=0,"",(J38*Parametrit!$B$4)+(K38*Parametrit!$B$5)) ->  | N38: =IF(A38<>"",I38+(J38*Parametrit!$B$4)+(K38*Parametrit!$B$5)+M38,"") -> 
C39: =IF(D39<>"",VLOOKUP(D39,Asiakkaat!$A$2:$E$244,2,FALSE),"") ->  | F39: =IF(D39<>"",VLOOKUP(D39,Asiakkaat!$A$2:$E$244,3,FALSE),"") ->  | G39: =IF(D39<>"",VLOOKUP(D39,Asiakkaat!$A$2:$E$100,4,FALSE),"") ->  | H39: =IF(D39<>"",VLOOKUP(D39,Asiakkaat!$A$2:$E$394,5,FALSE)*2,"") ->  | I39: =IF(D39<>"",H39*Parametrit!$B$6,"") ->  | L39: =IF((J39*Parametrit!$B$4)+(K39*Parametrit!$B$5)=0,"",(J39*Parametrit!$B$4)+(K39*Parametrit!$B$5)) ->  | N39: =IF(A39<>"",I39+(J39*Parametrit!$B$4)+(K39*Parametrit!$B$5)+M39,"") -> 
C40: =IF(D40<>"",VLOOKUP(D40,Asiakkaat!$A$2:$E$244,2,FALSE),"") ->  | F40: =IF(D40<>"",VLOOKUP(D40,Asiakkaat!$A$2:$E$244,3,FALSE),"") ->  | G40: =IF(D40<>"",VLOOKUP(D40,Asiakkaat!$A$2:$E$100,4,FALSE),"") ->  | H40: =IF(D40<>"",VLOOKUP(D40,Asiakkaat!$A$2:$E$394,5,FALSE)*2,"") ->  | I40: =IF(D40<>"",H40*Parametrit!$B$6,"") ->  | L40: =IF((J40*Parametrit!$B$4)+(K40*Parametrit!$B$5)=0,"",(J40*Parametrit!$B$4)+(K40*Parametrit!$B$5)) ->  | N40: =IF(A40<>"",I40+(J40*Parametrit!$B$4)+(K40*Parametrit!$B$5)+M40,"") -> 
C41: =IF(D41<>"",VLOOKUP(D41,Asiakkaat!$A$2:$E$244,2,FALSE),"") ->  | F41: =IF(D41<>"",VLOOKUP(D41,Asiakkaat!$A$2:$E$244,3,FALSE),"") ->  | G41: =IF(D41<>"",VLOOKUP(D41,Asiakkaat!$A$2:$E$100,4,FALSE),"") ->  | H41: =IF(D41<>"",VLOOKUP(D41,Asiakkaat!$A$2:$E$394,5,FALSE)*2,"") ->  | I41: =IF(D41<>"",H41*Parametrit!$B$6,"") ->  | L41: =IF((J41*Parametrit!$B$4)+(K41*Parametrit!$B$5)=0,"",(J41*Parametrit!$B$4)+(K41*Parametrit!$B$5)) ->  | N41: =IF(A41<>"",I41+(J41*Parametrit!$B$4)+(K41*Parametrit!$B$5)+M41,"") -> 
C42: =IF(D42<>"",VLOOKUP(D42,Asiakkaat!$A$2:$E$244,2,FALSE),"") ->  | F42: =IF(D42<>"",VLOOKUP(D42,Asiakkaat!$A$2:$E$244,3,FALSE),"") ->  | G42: =IF(D42<>"",VLOOKUP(D42,Asiakkaat!$A$2:$E$100,4,FALSE),"") ->  | H42: =IF(D42<>"",VLOOKUP(D42,Asiakkaat!$A$2:$E$394,5,FALSE)*2,"") ->  | I42: =IF(D42<>"",H42*Parametrit!$B$6,"") ->  | L42: =IF((J42*Parametrit!$B$4)+(K42*Parametrit!$B$5)=0,"",(J42*Parametrit!$B$4)+(K42*Parametrit!$B$5)) ->  | N42: =IF(A42<>"",I42+(J42*Parametrit!$B$4)+(K42*Parametrit!$B$5)+M42,"") -> 
C43: =IF(D43<>"",VLOOKUP(D43,Asiakkaat!$A$2:$E$244,2,FALSE),"") ->  | F43: =IF(D43<>"",VLOOKUP(D43,Asiakkaat!$A$2:$E$244,3,FALSE),"") ->  | G43: =IF(D43<>"",VLOOKUP(D43,Asiakkaat!$A$2:$E$100,4,FALSE),"") ->  | H43: =IF(D43<>"",VLOOKUP(D43,Asiakkaat!$A$2:$E$394,5,FALSE)*2,"") ->  | I43: =IF(D43<>"",H43*Parametrit!$B$6,"") ->  | L43: =IF((J43*Parametrit!$B$4)+(K43*Parametrit!$B$5)=0,"",(J43*Parametrit!$B$4)+(K43*Parametrit!$B$5)) ->  | N43: =IF(A43<>"",I43+(J43*Parametrit!$B$4)+(K43*Parametrit!$B$5)+M43,"") -> 
C44: =IF(D44<>"",VLOOKUP(D44,Asiakkaat!$A$2:$E$244,2,FALSE),"") ->  | F44: =IF(D44<>"",VLOOKUP(D44,Asiakkaat!$A$2:$E$244,3,FALSE),"") ->  | G44: =IF(D44<>"",VLOOKUP(D44,Asiakkaat!$A$2:$E$100,4,FALSE),"") ->  | H44: =IF(D44<>"",VLOOKUP(D44,Asiakkaat!$A$2:$E$394,5,FALSE)*2,"") ->  | I44: =IF(D44<>"",H44*Parametrit!$B$6,"") ->  | L44: =IF((J44*Parametrit!$B$4)+(K44*Parametrit!$B$5)=0,"",(J44*Parametrit!$B$4)+(K44*Parametrit!$B$5)) ->  | N44: =IF(A44<>"",I44+(J44*Parametrit!$B$4)+(K44*Parametrit!$B$5)+M44,"") -> 
C45: =IF(D45<>"",VLOOKUP(D45,Asiakkaat!$A$2:$E$244,2,FALSE),"") ->  | F45: =IF(D45<>"",VLOOKUP(D45,Asiakkaat!$A$2:$E$244,3,FALSE),"") ->  | G45: =IF(D45<>"",VLOOKUP(D45,Asiakkaat!$A$2:$E$100,4,FALSE),"") ->  | H45: =IF(D45<>"",VLOOKUP(D45,Asiakkaat!$A$2:$E$394,5,FALSE)*2,"") ->  | I45: =IF(D45<>"",H45*Parametrit!$B$6,"") ->  | L45: =IF((J45*Parametrit!$B$4)+(K45*Parametrit!$B$5)=0,"",(J45*Parametrit!$B$4)+(K45*Parametrit!$B$5)) ->  | N45: =IF(A45<>"",I45+(J45*Parametrit!$B$4)+(K45*Parametrit!$B$5)+M45,"") -> 
C46: =IF(D46<>"",VLOOKUP(D46,Asiakkaat!$A$2:$E$244,2,FALSE),"") ->  | F46: =IF(D46<>"",VLOOKUP(D46,Asiakkaat!$A$2:$E$244,3,FALSE),"") ->  | G46: =IF(D46<>"",VLOOKUP(D46,Asiakkaat!$A$2:$E$100,4,FALSE),"") ->  | H46: =IF(D46<>"",VLOOKUP(D46,Asiakkaat!$A$2:$E$394,5,FALSE)*2,"") ->  | I46: =IF(D46<>"",H46*Parametrit!$B$6,"") ->  | L46: =IF((J46*Parametrit!$B$4)+(K46*Parametrit!$B$5)=0,"",(J46*Parametrit!$B$4)+(K46*Parametrit!$B$5)) ->  | N46: =IF(A46<>"",I46+(J46*Parametrit!$B$4)+(K46*Parametrit!$B$5)+M46,"") -> 
C47: =IF(D47<>"",VLOOKUP(D47,Asiakkaat!$A$2:$E$244,2,FALSE),"") ->  | F47: =IF(D47<>"",VLOOKUP(D47,Asiakkaat!$A$2:$E$244,3,FALSE),"") ->  | G47: =IF(D47<>"",VLOOKUP(D47,Asiakkaat!$A$2:$E$100,4,FALSE),"") ->  | H47: =IF(D47<>"",VLOOKUP(D47,Asiakkaat!$A$2:$E$394,5,FALSE)*2,"") ->  | I47: =IF(D47<>"",H47*Parametrit!$B$6,"") ->  | L47: =IF((J47*Parametrit!$B$4)+(K47*Parametrit!$B$5)=0,"",(J47*Parametrit!$B$4)+(K47*Parametrit!$B$5)) ->  | N47: =IF(A47<>"",I47+(J47*Parametrit!$B$4)+(K47*Parametrit!$B$5)+M47,"") -> 
C48: =IF(D48<>"",VLOOKUP(D48,Asiakkaat!$A$2:$E$244,2,FALSE),"") ->  | F48: =IF(D48<>"",VLOOKUP(D48,Asiakkaat!$A$2:$E$244,3,FALSE),"") ->  | G48: =IF(D48<>"",VLOOKUP(D48,Asiakkaat!$A$2:$E$100,4,FALSE),"") ->  | H48: =IF(D48<>"",VLOOKUP(D48,Asiakkaat!$A$2:$E$394,5,FALSE)*2,"") ->  | I48: =IF(D48<>"",H48*Parametrit!$B$6,"") ->  | L48: =IF((J48*Parametrit!$B$4)+(K48*Parametrit!$B$5)=0,"",(J48*Parametrit!$B$4)+(K48*Parametrit!$B$5)) ->  | N48: =IF(A48<>"",I48+(J48*Parametrit!$B$4)+(K48*Parametrit!$B$5)+M48,"") -> 
C49: =IF(D49<>"",VLOOKUP(D49,Asiakkaat!$A$2:$E$244,2,FALSE),"") ->  | F49: =IF(D49<>"",VLOOKUP(D49,Asiakkaat!$A$2:$E$244,3,FALSE),"") ->  | G49: =IF(D49<>"",VLOOKUP(D49,Asiakkaat!$A$2:$E$100,4,FALSE),"") ->  | H49: =IF(D49<>"",VLOOKUP(D49,Asiakkaat!$A$2:$E$394,5,FALSE)*2,"") ->  | I49: =IF(D49<>"",H49*Parametrit!$B$6,"") ->  | L49: =IF((J49*Parametrit!$B$4)+(K49*Parametrit!$B$5)=0,"",(J49*Parametrit!$B$4)+(K49*Parametrit!$B$5)) ->  | N49: =IF(A49<>"",I49+(J49*Parametrit!$B$4)+(K49*Parametrit!$B$5)+M49,"") -> 
C50: =IF(D50<>"",VLOOKUP(D50,Asiakkaat!$A$2:$E$244,2,FALSE),"") ->  | F50: =IF(D50<>"",VLOOKUP(D50,Asiakkaat!$A$2:$E$244,3,FALSE),"") ->  | G50: =IF(D50<>"",VLOOKUP(D50,Asiakkaat!$A$2:$E$100,4,FALSE),"") ->  | H50: =IF(D50<>"",VLOOKUP(D50,Asiakkaat!$A$2:$E$394,5,FALSE)*2,"") ->  | I50: =IF(D50<>"",H50*Parametrit!$B$6,"") ->  | L50: =IF((J50*Parametrit!$B$4)+(K50*Parametrit!$B$5)=0,"",(J50*Parametrit!$B$4)+(K50*Parametrit!$B$5)) ->  | N50: =IF(A50<>"",I50+(J50*Parametrit!$B$4)+(K50*Parametrit!$B$5)+M50,"") -> 
C51: =IF(D51<>"",VLOOKUP(D51,Asiakkaat!$A$2:$E$244,2,FALSE),"") ->  | F51: =IF(D51<>"",VLOOKUP(D51,Asiakkaat!$A$2:$E$244,3,FALSE),"") ->  | G51: =IF(D51<>"",VLOOKUP(D51,Asiakkaat!$A$2:$E$100,4,FALSE),"") ->  | H51: =IF(D51<>"",VLOOKUP(D51,Asiakkaat!$A$2:$E$394,5,FALSE)*2,"") ->  | I51: =IF(D51<>"",H51*Parametrit!$B$6,"") ->  | L51: =IF((J51*Parametrit!$B$4)+(K51*Parametrit!$B$5)=0,"",(J51*Parametrit!$B$4)+(K51*Parametrit!$B$5)) ->  | N51: =IF(A51<>"",I51+(J51*Parametrit!$B$4)+(K51*Parametrit!$B$5)+M51,"") -> 
C52: =IF(D52<>"",VLOOKUP(D52,Asiakkaat!$A$2:$E$244,2,FALSE),"") ->  | F52: =IF(D52<>"",VLOOKUP(D52,Asiakkaat!$A$2:$E$244,3,FALSE),"") ->  | G52: =IF(D52<>"",VLOOKUP(D52,Asiakkaat!$A$2:$E$100,4,FALSE),"") ->  | H52: =IF(D52<>"",VLOOKUP(D52,Asiakkaat!$A$2:$E$394,5,FALSE)*2,"") ->  | I52: =IF(D52<>"",H52*Parametrit!$B$6,"") ->  | L52: =IF((J52*Parametrit!$B$4)+(K52*Parametrit!$B$5)=0,"",(J52*Parametrit!$B$4)+(K52*Parametrit!$B$5)) ->  | N52: =IF(A52<>"",I52+(J52*Parametrit!$B$4)+(K52*Parametrit!$B$5)+M52,"") -> 
C53: =IF(D53<>"",VLOOKUP(D53,Asiakkaat!$A$2:$E$244,2,FALSE),"") ->  | F53: =IF(D53<>"",VLOOKUP(D53,Asiakkaat!$A$2:$E$244,3,FALSE),"") ->  | G53: =IF(D53<>"",VLOOKUP(D53,Asiakkaat!$A$2:$E$100,4,FALSE),"") ->  | H53: =IF(D53<>"",VLOOKUP(D53,Asiakkaat!$A$2:$E$394,5,FALSE)*2,"") ->  | I53: =IF(D53<>"",H53*Parametrit!$B$6,"") ->  | L53: =IF((J53*Parametrit!$B$4)+(K53*Parametrit!$B$5)=0,"",(J53*Parametrit!$B$4)+(K53*Parametrit!$B$5)) ->  | N53: =IF(A53<>"",I53+(J53*Parametrit!$B$4)+(K53*Parametrit!$B$5)+M53,"") -> 
C54: =IF(D54<>"",VLOOKUP(D54,Asiakkaat!$A$2:$E$244,2,FALSE),"") ->  | F54: =IF(D54<>"",VLOOKUP(D54,Asiakkaat!$A$2:$E$244,3,FALSE),"") ->  | G54: =IF(D54<>"",VLOOKUP(D54,Asiakkaat!$A$2:$E$100,4,FALSE),"") ->  | H54: =IF(D54<>"",VLOOKUP(D54,Asiakkaat!$A$2:$E$394,5,FALSE)*2,"") ->  | I54: =IF(D54<>"",H54*Parametrit!$B$6,"") ->  | L54: =IF((J54*Parametrit!$B$4)+(K54*Parametrit!$B$5)=0,"",(J54*Parametrit!$B$4)+(K54*Parametrit!$B$5)) ->  | N54: =IF(A54<>"",I54+(J54*Parametrit!$B$4)+(K54*Parametrit!$B$5)+M54,"") -> 
C55: =IF(D55<>"",VLOOKUP(D55,Asiakkaat!$A$2:$E$244,2,FALSE),"") ->  | F55: =IF(D55<>"",VLOOKUP(D55,Asiakkaat!$A$2:$E$244,3,FALSE),"") ->  | G55: =IF(D55<>"",VLOOKUP(D55,Asiakkaat!$A$2:$E$100,4,FALSE),"") ->  | H55: =IF(D55<>"",VLOOKUP(D55,Asiakkaat!$A$2:$E$394,5,FALSE)*2,"") ->  | I55: =IF(D55<>"",H55*Parametrit!$B$6,"") ->  | L55: =IF((J55*Parametrit!$B$4)+(K55*Parametrit!$B$5)=0,"",(J55*Parametrit!$B$4)+(K55*Parametrit!$B$5)) ->  | N55: =IF(A55<>"",I55+(J55*Parametrit!$B$4)+(K55*Parametrit!$B$5)+M55,"") -> 
C56: =IF(D56<>"",VLOOKUP(D56,Asiakkaat!$A$2:$E$244,2,FALSE),"") ->  | F56: =IF(D56<>"",VLOOKUP(D56,Asiakkaat!$A$2:$E$244,3,FALSE),"") ->  | G56: =IF(D56<>"",VLOOKUP(D56,Asiakkaat!$A$2:$E$100,4,FALSE),"") ->  | H56: =IF(D56<>"",VLOOKUP(D56,Asiakkaat!$A$2:$E$394,5,FALSE)*2,"") ->  | I56: =IF(D56<>"",H56*Parametrit!$B$6,"") ->  | L56: =IF((J56*Parametrit!$B$4)+(K56*Parametrit!$B$5)=0,"",(J56*Parametrit!$B$4)+(K56*Parametrit!$B$5)) ->  | N56: =IF(A56<>"",I56+(J56*Parametrit!$B$4)+(K56*Parametrit!$B$5)+M56,"") -> 
C57: =IF(D57<>"",VLOOKUP(D57,Asiakkaat!$A$2:$E$244,2,FALSE),"") ->  | F57: =IF(D57<>"",VLOOKUP(D57,Asiakkaat!$A$2:$E$244,3,FALSE),"") ->  | G57: =IF(D57<>"",VLOOKUP(D57,Asiakkaat!$A$2:$E$100,4,FALSE),"") ->  | H57: =IF(D57<>"",VLOOKUP(D57,Asiakkaat!$A$2:$E$394,5,FALSE)*2,"") ->  | I57: =IF(D57<>"",H57*Parametrit!$B$6,"") ->  | L57: =IF((J57*Parametrit!$B$4)+(K57*Parametrit!$B$5)=0,"",(J57*Parametrit!$B$4)+(K57*Parametrit!$B$5)) ->  | N57: =IF(A57<>"",I57+(J57*Parametrit!$B$4)+(K57*Parametrit!$B$5)+M57,"") -> 
C58: =IF(D58<>"",VLOOKUP(D58,Asiakkaat!$A$2:$E$244,2,FALSE),"") ->  | F58: =IF(D58<>"",VLOOKUP(D58,Asiakkaat!$A$2:$E$244,3,FALSE),"") ->  | G58: =IF(D58<>"",VLOOKUP(D58,Asiakkaat!$A$2:$E$100,4,FALSE),"") ->  | H58: =IF(D58<>"",VLOOKUP(D58,Asiakkaat!$A$2:$E$394,5,FALSE)*2,"") ->  | I58: =IF(D58<>"",H58*Parametrit!$B$6,"") ->  | L58: =IF((J58*Parametrit!$B$4)+(K58*Parametrit!$B$5)=0,"",(J58*Parametrit!$B$4)+(K58*Parametrit!$B$5)) ->  | N58: =IF(A58<>"",I58+(J58*Parametrit!$B$4)+(K58*Parametrit!$B$5)+M58,"") -> 
C59: =IF(D59<>"",VLOOKUP(D59,Asiakkaat!$A$2:$E$244,2,FALSE),"") ->  | F59: =IF(D59<>"",VLOOKUP(D59,Asiakkaat!$A$2:$E$244,3,FALSE),"") ->  | G59: =IF(D59<>"",VLOOKUP(D59,Asiakkaat!$A$2:$E$100,4,FALSE),"") ->  | H59: =IF(D59<>"",VLOOKUP(D59,Asiakkaat!$A$2:$E$394,5,FALSE)*2,"") ->  | I59: =IF(D59<>"",H59*Parametrit!$B$6,"") ->  | L59: =IF((J59*Parametrit!$B$4)+(K59*Parametrit!$B$5)=0,"",(J59*Parametrit!$B$4)+(K59*Parametrit!$B$5)) ->  | N59: =IF(A59<>"",I59+(J59*Parametrit!$B$4)+(K59*Parametrit!$B$5)+M59,"") -> 
C60: =IF(D60<>"",VLOOKUP(D60,Asiakkaat!$A$2:$E$244,2,FALSE),"") ->  | F60: =IF(D60<>"",VLOOKUP(D60,Asiakkaat!$A$2:$E$244,3,FALSE),"") ->  | G60: =IF(D60<>"",VLOOKUP(D60,Asiakkaat!$A$2:$E$100,4,FALSE),"") ->  | H60: =IF(D60<>"",VLOOKUP(D60,Asiakkaat!$A$2:$E$394,5,FALSE)*2,"") ->  | I60: =IF(D60<>"",H60*Parametrit!$B$6,"") ->  | L60: =IF((J60*Parametrit!$B$4)+(K60*Parametrit!$B$5)=0,"",(J60*Parametrit!$B$4)+(K60*Parametrit!$B$5)) ->  | N60: =IF(A60<>"",I60+(J60*Parametrit!$B$4)+(K60*Parametrit!$B$5)+M60,"") -> 
C61: =IF(D61<>"",VLOOKUP(D61,Asiakkaat!$A$2:$E$244,2,FALSE),"") ->  | F61: =IF(D61<>"",VLOOKUP(D61,Asiakkaat!$A$2:$E$244,3,FALSE),"") ->  | G61: =IF(D61<>"",VLOOKUP(D61,Asiakkaat!$A$2:$E$100,4,FALSE),"") ->  | H61: =IF(D61<>"",VLOOKUP(D61,Asiakkaat!$A$2:$E$394,5,FALSE)*2,"") ->  | I61: =IF(D61<>"",H61*Parametrit!$B$6,"") ->  | L61: =IF((J61*Parametrit!$B$4)+(K61*Parametrit!$B$5)=0,"",(J61*Parametrit!$B$4)+(K61*Parametrit!$B$5)) ->  | N61: =IF(A61<>"",I61+(J61*Parametrit!$B$4)+(K61*Parametrit!$B$5)+M61,"") -> 
C62: =IF(D62<>"",VLOOKUP(D62,Asiakkaat!$A$2:$E$244,2,FALSE),"") ->  | F62: =IF(D62<>"",VLOOKUP(D62,Asiakkaat!$A$2:$E$244,3,FALSE),"") ->  | G62: =IF(D62<>"",VLOOKUP(D62,Asiakkaat!$A$2:$E$100,4,FALSE),"") ->  | H62: =IF(D62<>"",VLOOKUP(D62,Asiakkaat!$A$2:$E$394,5,FALSE)*2,"") ->  | I62: =IF(D62<>"",H62*Parametrit!$B$6,"") ->  | L62: =IF((J62*Parametrit!$B$4)+(K62*Parametrit!$B$5)=0,"",(J62*Parametrit!$B$4)+(K62*Parametrit!$B$5)) ->  | N62: =IF(A62<>"",I62+(J62*Parametrit!$B$4)+(K62*Parametrit!$B$5)+M62,"") -> 
C63: =IF(D63<>"",VLOOKUP(D63,Asiakkaat!$A$2:$E$244,2,FALSE),"") ->  | F63: =IF(D63<>"",VLOOKUP(D63,Asiakkaat!$A$2:$E$244,3,FALSE),"") ->  | G63: =IF(D63<>"",VLOOKUP(D63,Asiakkaat!$A$2:$E$100,4,FALSE),"") ->  | H63: =IF(D63<>"",VLOOKUP(D63,Asiakkaat!$A$2:$E$394,5,FALSE)*2,"") ->  | I63: =IF(D63<>"",H63*Parametrit!$B$6,"") ->  | L63: =IF((J63*Parametrit!$B$4)+(K63*Parametrit!$B$5)=0,"",(J63*Parametrit!$B$4)+(K63*Parametrit!$B$5)) ->  | N63: =IF(A63<>"",I63+(J63*Parametrit!$B$4)+(K63*Parametrit!$B$5)+M63,"") -> 
C64: =IF(D64<>"",VLOOKUP(D64,Asiakkaat!$A$2:$E$244,2,FALSE),"") ->  | F64: =IF(D64<>"",VLOOKUP(D64,Asiakkaat!$A$2:$E$244,3,FALSE),"") ->  | G64: =IF(D64<>"",VLOOKUP(D64,Asiakkaat!$A$2:$E$100,4,FALSE),"") ->  | H64: =IF(D64<>"",VLOOKUP(D64,Asiakkaat!$A$2:$E$394,5,FALSE)*2,"") ->  | I64: =IF(D64<>"",H64*Parametrit!$B$6,"") ->  | L64: =IF((J64*Parametrit!$B$4)+(K64*Parametrit!$B$5)=0,"",(J64*Parametrit!$B$4)+(K64*Parametrit!$B$5)) ->  | N64: =IF(A64<>"",I64+(J64*Parametrit!$B$4)+(K64*Parametrit!$B$5)+M64,"") -> 
C65: =IF(D65<>"",VLOOKUP(D65,Asiakkaat!$A$2:$E$244,2,FALSE),"") ->  | F65: =IF(D65<>"",VLOOKUP(D65,Asiakkaat!$A$2:$E$244,3,FALSE),"") ->  | G65: =IF(D65<>"",VLOOKUP(D65,Asiakkaat!$A$2:$E$100,4,FALSE),"") ->  | H65: =IF(D65<>"",VLOOKUP(D65,Asiakkaat!$A$2:$E$394,5,FALSE)*2,"") ->  | I65: =IF(D65<>"",H65*Parametrit!$B$6,"") ->  | L65: =IF((J65*Parametrit!$B$4)+(K65*Parametrit!$B$5)=0,"",(J65*Parametrit!$B$4)+(K65*Parametrit!$B$5)) ->  | N65: =IF(A65<>"",I65+(J65*Parametrit!$B$4)+(K65*Parametrit!$B$5)+M65,"") -> 
C66: =IF(D66<>"",VLOOKUP(D66,Asiakkaat!$A$2:$E$244,2,FALSE),"") ->  | F66: =IF(D66<>"",VLOOKUP(D66,Asiakkaat!$A$2:$E$244,3,FALSE),"") ->  | G66: =IF(D66<>"",VLOOKUP(D66,Asiakkaat!$A$2:$E$100,4,FALSE),"") ->  | H66: =IF(D66<>"",VLOOKUP(D66,Asiakkaat!$A$2:$E$394,5,FALSE)*2,"") ->  | I66: =IF(D66<>"",H66*Parametrit!$B$6,"") ->  | L66: =IF((J66*Parametrit!$B$4)+(K66*Parametrit!$B$5)=0,"",(J66*Parametrit!$B$4)+(K66*Parametrit!$B$5)) ->  | N66: =IF(A66<>"",I66+(J66*Parametrit!$B$4)+(K66*Parametrit!$B$5)+M66,"") -> 
B67: =IF(A67<>"",IFERROR(WEEKDAY(A67),""),"") ->  | C67: =IF(D67<>"",VLOOKUP(D67,Asiakkaat!$A$2:$E$244,2,FALSE),"") ->  | F67: =IF(D67<>"",VLOOKUP(D67,Asiakkaat!$A$2:$E$244,3,FALSE),"") ->  | G67: =IF(D67<>"",VLOOKUP(D67,Asiakkaat!$A$2:$E$100,4,FALSE),"") ->  | H67: =IF(D67<>"",VLOOKUP(D67,Asiakkaat!$A$2:$E$394,5,FALSE)*2,"") ->  | I67: =IF(D67<>"",H67*Parametrit!$B$6,"") ->  | L67: =IF((J67*Parametrit!$B$4)+(K67*Parametrit!$B$5)=0,"",(J67*Parametrit!$B$4)+(K67*Parametrit!$B$5)) ->  | N67: =IF(A67<>"",I67+(J67*Parametrit!$B$4)+(K67*Parametrit!$B$5)+M67,"") -> 
C68: =IF(D68<>"",VLOOKUP(D68,Asiakkaat!$A$2:$E$244,2,FALSE),"") ->  | F68: =IF(D68<>"",VLOOKUP(D68,Asiakkaat!$A$2:$E$244,3,FALSE),"") ->  | G68: =IF(D68<>"",VLOOKUP(D68,Asiakkaat!$A$2:$E$100,4,FALSE),"") ->  | H68: =IF(D68<>"",VLOOKUP(D68,Asiakkaat!$A$2:$E$394,5,FALSE)*2,"") ->  | I68: =IF(D68<>"",H68*Parametrit!$B$6,"") ->  | L68: =IF((J68*Parametrit!$B$4)+(K68*Parametrit!$B$5)=0,"",(J68*Parametrit!$B$4)+(K68*Parametrit!$B$5)) ->  | N68: =IF(A68<>"",I68+(J68*Parametrit!$B$4)+(K68*Parametrit!$B$5)+M68,"") -> 
C69: =IF(D69<>"",VLOOKUP(D69,Asiakkaat!$A$2:$E$244,2,FALSE),"") ->  | F69: =IF(D69<>"",VLOOKUP(D69,Asiakkaat!$A$2:$E$244,3,FALSE),"") ->  | G69: =IF(D69<>"",VLOOKUP(D69,Asiakkaat!$A$2:$E$100,4,FALSE),"") ->  | H69: =IF(D69<>"",VLOOKUP(D69,Asiakkaat!$A$2:$E$394,5,FALSE)*2,"") ->  | I69: =IF(D69<>"",H69*Parametrit!$B$6,"") ->  | L69: =IF((J69*Parametrit!$B$4)+(K69*Parametrit!$B$5)=0,"",(J69*Parametrit!$B$4)+(K69*Parametrit!$B$5)) ->  | N69: =IF(A69<>"",I69+(J69*Parametrit!$B$4)+(K69*Parametrit!$B$5)+M69,"") -> 
C70: =IF(D70<>"",VLOOKUP(D70,Asiakkaat!$A$2:$E$244,2,FALSE),"") ->  | F70: =IF(D70<>"",VLOOKUP(D70,Asiakkaat!$A$2:$E$244,3,FALSE),"") ->  | G70: =IF(D70<>"",VLOOKUP(D70,Asiakkaat!$A$2:$E$100,4,FALSE),"") ->  | H70: =IF(D70<>"",VLOOKUP(D70,Asiakkaat!$A$2:$E$394,5,FALSE)*2,"") ->  | I70: =IF(D70<>"",H70*Parametrit!$B$6,"") ->  | L70: =IF((J70*Parametrit!$B$4)+(K70*Parametrit!$B$5)=0,"",(J70*Parametrit!$B$4)+(K70*Parametrit!$B$5)) ->  | N70: =IF(A70<>"",I70+(J70*Parametrit!$B$4)+(K70*Parametrit!$B$5)+M70,"") -> 
C71: =IF(D71<>"",VLOOKUP(D71,Asiakkaat!$A$2:$E$244,2,FALSE),"") ->  | F71: =IF(D71<>"",VLOOKUP(D71,Asiakkaat!$A$2:$E$244,3,FALSE),"") ->  | G71: =IF(D71<>"",VLOOKUP(D71,Asiakkaat!$A$2:$E$100,4,FALSE),"") ->  | H71: =IF(D71<>"",VLOOKUP(D71,Asiakkaat!$A$2:$E$394,5,FALSE)*2,"") ->  | I71: =IF(D71<>"",H71*Parametrit!$B$6,"") ->  | L71: =IF((J71*Parametrit!$B$4)+(K71*Parametrit!$B$5)=0,"",(J71*Parametrit!$B$4)+(K71*Parametrit!$B$5)) ->  | N71: =IF(A71<>"",I71+(J71*Parametrit!$B$4)+(K71*Parametrit!$B$5)+M71,"") -> 
C72: =IF(D72<>"",VLOOKUP(D72,Asiakkaat!$A$2:$E$244,2,FALSE),"") ->  | F72: =IF(D72<>"",VLOOKUP(D72,Asiakkaat!$A$2:$E$244,3,FALSE),"") ->  | G72: =IF(D72<>"",VLOOKUP(D72,Asiakkaat!$A$2:$E$100,4,FALSE),"") ->  | H72: =IF(D72<>"",VLOOKUP(D72,Asiakkaat!$A$2:$E$394,5,FALSE)*2,"") ->  | I72: =IF(D72<>"",H72*Parametrit!$B$6,"") ->  | L72: =IF((J72*Parametrit!$B$4)+(K72*Parametrit!$B$5)=0,"",(J72*Parametrit!$B$4)+(K72*Parametrit!$B$5)) ->  | N72: =IF(A72<>"",I72+(J72*Parametrit!$B$4)+(K72*Parametrit!$B$5)+M72,"") -> 
C73: =IF(D73<>"",VLOOKUP(D73,Asiakkaat!$A$2:$E$244,2,FALSE),"") ->  | F73: =IF(D73<>"",VLOOKUP(D73,Asiakkaat!$A$2:$E$244,3,FALSE),"") ->  | G73: =IF(D73<>"",VLOOKUP(D73,Asiakkaat!$A$2:$E$100,4,FALSE),"") ->  | H73: =IF(D73<>"",VLOOKUP(D73,Asiakkaat!$A$2:$E$394,5,FALSE)*2,"") ->  | I73: =IF(D73<>"",H73*Parametrit!$B$6,"") ->  | L73: =IF((J73*Parametrit!$B$4)+(K73*Parametrit!$B$5)=0,"",(J73*Parametrit!$B$4)+(K73*Parametrit!$B$5)) ->  | N73: =IF(A73<>"",I73+(J73*Parametrit!$B$4)+(K73*Parametrit!$B$5)+M73,"") -> 
C74: =IF(D74<>"",VLOOKUP(D74,Asiakkaat!$A$2:$E$244,2,FALSE),"") ->  | F74: =IF(D74<>"",VLOOKUP(D74,Asiakkaat!$A$2:$E$244,3,FALSE),"") ->  | G74: =IF(D74<>"",VLOOKUP(D74,Asiakkaat!$A$2:$E$100,4,FALSE),"") ->  | H74: =IF(D74<>"",VLOOKUP(D74,Asiakkaat!$A$2:$E$394,5,FALSE)*2,"") ->  | I74: =IF(D74<>"",H74*Parametrit!$B$6,"") ->  | L74: =IF((J74*Parametrit!$B$4)+(K74*Parametrit!$B$5)=0,"",(J74*Parametrit!$B$4)+(K74*Parametrit!$B$5)) ->  | N74: =IF(A74<>"",I74+(J74*Parametrit!$B$4)+(K74*Parametrit!$B$5)+M74,"") -> 
C75: =IF(D75<>"",VLOOKUP(D75,Asiakkaat!$A$2:$E$244,2,FALSE),"") ->  | F75: =IF(D75<>"",VLOOKUP(D75,Asiakkaat!$A$2:$E$244,3,FALSE),"") ->  | G75: =IF(D75<>"",VLOOKUP(D75,Asiakkaat!$A$2:$E$100,4,FALSE),"") ->  | H75: =IF(D75<>"",VLOOKUP(D75,Asiakkaat!$A$2:$E$394,5,FALSE)*2,"") ->  | I75: =IF(D75<>"",H75*Parametrit!$B$6,"") ->  | L75: =IF((J75*Parametrit!$B$4)+(K75*Parametrit!$B$5)=0,"",(J75*Parametrit!$B$4)+(K75*Parametrit!$B$5)) ->  | N75: =IF(A75<>"",I75+(J75*Parametrit!$B$4)+(K75*Parametrit!$B$5)+M75,"") -> 
C76: =IF(D76<>"",VLOOKUP(D76,Asiakkaat!$A$2:$E$244,2,FALSE),"") ->  | F76: =IF(D76<>"",VLOOKUP(D76,Asiakkaat!$A$2:$E$244,3,FALSE),"") ->  | G76: =IF(D76<>"",VLOOKUP(D76,Asiakkaat!$A$2:$E$100,4,FALSE),"") ->  | H76: =IF(D76<>"",VLOOKUP(D76,Asiakkaat!$A$2:$E$394,5,FALSE)*2,"") ->  | I76: =IF(D76<>"",H76*Parametrit!$B$6,"") ->  | L76: =IF((J76*Parametrit!$B$4)+(K76*Parametrit!$B$5)=0,"",(J76*Parametrit!$B$4)+(K76*Parametrit!$B$5)) ->  | N76: =IF(A76<>"",I76+(J76*Parametrit!$B$4)+(K76*Parametrit!$B$5)+M76,"") -> 
C77: =IF(D77<>"",VLOOKUP(D77,Asiakkaat!$A$2:$E$244,2,FALSE),"") ->  | F77: =IF(D77<>"",VLOOKUP(D77,Asiakkaat!$A$2:$E$244,3,FALSE),"") ->  | G77: =IF(D77<>"",VLOOKUP(D77,Asiakkaat!$A$2:$E$100,4,FALSE),"") ->  | H77: =IF(D77<>"",VLOOKUP(D77,Asiakkaat!$A$2:$E$394,5,FALSE)*2,"") ->  | I77: =IF(D77<>"",H77*Parametrit!$B$6,"") ->  | L77: =IF((J77*Parametrit!$B$4)+(K77*Parametrit!$B$5)=0,"",(J77*Parametrit!$B$4)+(K77*Parametrit!$B$5)) ->  | N77: =IF(A77<>"",I77+(J77*Parametrit!$B$4)+(K77*Parametrit!$B$5)+M77,"") -> 
C78: =IF(D78<>"",VLOOKUP(D78,Asiakkaat!$A$2:$E$244,2,FALSE),"") ->  | F78: =IF(D78<>"",VLOOKUP(D78,Asiakkaat!$A$2:$E$244,3,FALSE),"") ->  | G78: =IF(D78<>"",VLOOKUP(D78,Asiakkaat!$A$2:$E$100,4,FALSE),"") ->  | H78: =IF(D78<>"",VLOOKUP(D78,Asiakkaat!$A$2:$E$394,5,FALSE)*2,"") ->  | I78: =IF(D78<>"",H78*Parametrit!$B$6,"") ->  | L78: =IF((J78*Parametrit!$B$4)+(K78*Parametrit!$B$5)=0,"",(J78*Parametrit!$B$4)+(K78*Parametrit!$B$5)) ->  | N78: =IF(A78<>"",I78+(J78*Parametrit!$B$4)+(K78*Parametrit!$B$5)+M78,"") -> 
C79: =IF(D79<>"",VLOOKUP(D79,Asiakkaat!$A$2:$E$244,2,FALSE),"") ->  | F79: =IF(D79<>"",VLOOKUP(D79,Asiakkaat!$A$2:$E$244,3,FALSE),"") ->  | G79: =IF(D79<>"",VLOOKUP(D79,Asiakkaat!$A$2:$E$100,4,FALSE),"") ->  | H79: =IF(D79<>"",VLOOKUP(D79,Asiakkaat!$A$2:$E$394,5,FALSE)*2,"") ->  | I79: =IF(D79<>"",H79*Parametrit!$B$6,"") ->  | L79: =IF((J79*Parametrit!$B$4)+(K79*Parametrit!$B$5)=0,"",(J79*Parametrit!$B$4)+(K79*Parametrit!$B$5)) ->  | N79: =IF(A79<>"",I79+(J79*Parametrit!$B$4)+(K79*Parametrit!$B$5)+M79,"") -> 
C80: =IF(D80<>"",VLOOKUP(D80,Asiakkaat!$A$2:$E$244,2,FALSE),"") ->  | F80: =IF(D80<>"",VLOOKUP(D80,Asiakkaat!$A$2:$E$244,3,FALSE),"") ->  | G80: =IF(D80<>"",VLOOKUP(D80,Asiakkaat!$A$2:$E$100,4,FALSE),"") ->  | H80: =IF(D80<>"",VLOOKUP(D80,Asiakkaat!$A$2:$E$394,5,FALSE)*2,"") ->  | I80: =IF(D80<>"",H80*Parametrit!$B$6,"") ->  | L80: =IF((J80*Parametrit!$B$4)+(K80*Parametrit!$B$5)=0,"",(J80*Parametrit!$B$4)+(K80*Parametrit!$B$5)) ->  | N80: =IF(A80<>"",I80+(J80*Parametrit!$B$4)+(K80*Parametrit!$B$5)+M80,"") -> 
C81: =IF(D81<>"",VLOOKUP(D81,Asiakkaat!$A$2:$E$244,2,FALSE),"") ->  | F81: =IF(D81<>"",VLOOKUP(D81,Asiakkaat!$A$2:$E$244,3,FALSE),"") ->  | G81: =IF(D81<>"",VLOOKUP(D81,Asiakkaat!$A$2:$E$100,4,FALSE),"") ->  | H81: =IF(D81<>"",VLOOKUP(D81,Asiakkaat!$A$2:$E$394,5,FALSE)*2,"") ->  | I81: =IF(D81<>"",H81*Parametrit!$B$6,"") ->  | L81: =IF((J81*Parametrit!$B$4)+(K81*Parametrit!$B$5)=0,"",(J81*Parametrit!$B$4)+(K81*Parametrit!$B$5)) ->  | N81: =IF(A81<>"",I81+(J81*Parametrit!$B$4)+(K81*Parametrit!$B$5)+M81,"") -> 
C82: =IF(D82<>"",VLOOKUP(D82,Asiakkaat!$A$2:$E$244,2,FALSE),"") ->  | F82: =IF(D82<>"",VLOOKUP(D82,Asiakkaat!$A$2:$E$244,3,FALSE),"") ->  | G82: =IF(D82<>"",VLOOKUP(D82,Asiakkaat!$A$2:$E$100,4,FALSE),"") ->  | H82: =IF(D82<>"",VLOOKUP(D82,Asiakkaat!$A$2:$E$394,5,FALSE)*2,"") ->  | I82: =IF(D82<>"",H82*Parametrit!$B$6,"") ->  | L82: =IF((J82*Parametrit!$B$4)+(K82*Parametrit!$B$5)=0,"",(J82*Parametrit!$B$4)+(K82*Parametrit!$B$5)) ->  | N82: =IF(A82<>"",I82+(J82*Parametrit!$B$4)+(K82*Parametrit!$B$5)+M82,"") -> 
C83: =IF(D83<>"",VLOOKUP(D83,Asiakkaat!$A$2:$E$244,2,FALSE),"") ->  | F83: =IF(D83<>"",VLOOKUP(D83,Asiakkaat!$A$2:$E$244,3,FALSE),"") ->  | G83: =IF(D83<>"",VLOOKUP(D83,Asiakkaat!$A$2:$E$100,4,FALSE),"") ->  | H83: =IF(D83<>"",VLOOKUP(D83,Asiakkaat!$A$2:$E$394,5,FALSE)*2,"") ->  | I83: =IF(D83<>"",H83*Parametrit!$B$6,"") ->  | L83: =IF((J83*Parametrit!$B$4)+(K83*Parametrit!$B$5)=0,"",(J83*Parametrit!$B$4)+(K83*Parametrit!$B$5)) ->  | N83: =IF(A83<>"",I83+(J83*Parametrit!$B$4)+(K83*Parametrit!$B$5)+M83,"") -> 
C84: =IF(D84<>"",VLOOKUP(D84,Asiakkaat!$A$2:$E$244,2,FALSE),"") ->  | F84: =IF(D84<>"",VLOOKUP(D84,Asiakkaat!$A$2:$E$244,3,FALSE),"") ->  | G84: =IF(D84<>"",VLOOKUP(D84,Asiakkaat!$A$2:$E$100,4,FALSE),"") ->  | H84: =IF(D84<>"",VLOOKUP(D84,Asiakkaat!$A$2:$E$394,5,FALSE)*2,"") ->  | I84: =IF(D84<>"",H84*Parametrit!$B$6,"") ->  | L84: =IF((J84*Parametrit!$B$4)+(K84*Parametrit!$B$5)=0,"",(J84*Parametrit!$B$4)+(K84*Parametrit!$B$5)) ->  | N84: =IF(A84<>"",I84+(J84*Parametrit!$B$4)+(K84*Parametrit!$B$5)+M84,"") -> 
C85: =IF(D85<>"",VLOOKUP(D85,Asiakkaat!$A$2:$E$244,2,FALSE),"") ->  | F85: =IF(D85<>"",VLOOKUP(D85,Asiakkaat!$A$2:$E$244,3,FALSE),"") ->  | G85: =IF(D85<>"",VLOOKUP(D85,Asiakkaat!$A$2:$E$100,4,FALSE),"") ->  | H85: =IF(D85<>"",VLOOKUP(D85,Asiakkaat!$A$2:$E$394,5,FALSE)*2,"") ->  | I85: =IF(D85<>"",H85*Parametrit!$B$6,"") ->  | L85: =IF((J85*Parametrit!$B$4)+(K85*Parametrit!$B$5)=0,"",(J85*Parametrit!$B$4)+(K85*Parametrit!$B$5)) ->  | N85: =IF(A85<>"",I85+(J85*Parametrit!$B$4)+(K85*Parametrit!$B$5)+M85,"") -> 
C86: =IF(D86<>"",VLOOKUP(D86,Asiakkaat!$A$2:$E$244,2,FALSE),"") ->  | F86: =IF(D86<>"",VLOOKUP(D86,Asiakkaat!$A$2:$E$244,3,FALSE),"") ->  | G86: =IF(D86<>"",VLOOKUP(D86,Asiakkaat!$A$2:$E$100,4,FALSE),"") ->  | H86: =IF(D86<>"",VLOOKUP(D86,Asiakkaat!$A$2:$E$394,5,FALSE)*2,"") ->  | I86: =IF(D86<>"",H86*Parametrit!$B$6,"") ->  | L86: =IF((J86*Parametrit!$B$4)+(K86*Parametrit!$B$5)=0,"",(J86*Parametrit!$B$4)+(K86*Parametrit!$B$5)) ->  | N86: =IF(A86<>"",I86+(J86*Parametrit!$B$4)+(K86*Parametrit!$B$5)+M86,"") -> 
C87: =IF(D87<>"",VLOOKUP(D87,Asiakkaat!$A$2:$E$244,2,FALSE),"") ->  | F87: =IF(D87<>"",VLOOKUP(D87,Asiakkaat!$A$2:$E$244,3,FALSE),"") ->  | G87: =IF(D87<>"",VLOOKUP(D87,Asiakkaat!$A$2:$E$100,4,FALSE),"") ->  | H87: =IF(D87<>"",VLOOKUP(D87,Asiakkaat!$A$2:$E$394,5,FALSE)*2,"") ->  | I87: =IF(D87<>"",H87*Parametrit!$B$6,"") ->  | L87: =IF((J87*Parametrit!$B$4)+(K87*Parametrit!$B$5)=0,"",(J87*Parametrit!$B$4)+(K87*Parametrit!$B$5)) ->  | N87: =IF(A87<>"",I87+(J87*Parametrit!$B$4)+(K87*Parametrit!$B$5)+M87,"") -> 
C88: =IF(D88<>"",VLOOKUP(D88,Asiakkaat!$A$2:$E$244,2,FALSE),"") ->  | F88: =IF(D88<>"",VLOOKUP(D88,Asiakkaat!$A$2:$E$244,3,FALSE),"") ->  | G88: =IF(D88<>"",VLOOKUP(D88,Asiakkaat!$A$2:$E$100,4,FALSE),"") ->  | H88: =IF(D88<>"",VLOOKUP(D88,Asiakkaat!$A$2:$E$394,5,FALSE)*2,"") ->  | I88: =IF(D88<>"",H88*Parametrit!$B$6,"") ->  | L88: =IF((J88*Parametrit!$B$4)+(K88*Parametrit!$B$5)=0,"",(J88*Parametrit!$B$4)+(K88*Parametrit!$B$5)) ->  | N88: =IF(A88<>"",I88+(J88*Parametrit!$B$4)+(K88*Parametrit!$B$5)+M88,"") -> 
C89: =IF(D89<>"",VLOOKUP(D89,Asiakkaat!$A$2:$E$244,2,FALSE),"") ->  | F89: =IF(D89<>"",VLOOKUP(D89,Asiakkaat!$A$2:$E$244,3,FALSE),"") ->  | G89: =IF(D89<>"",VLOOKUP(D89,Asiakkaat!$A$2:$E$100,4,FALSE),"") ->  | H89: =IF(D89<>"",VLOOKUP(D89,Asiakkaat!$A$2:$E$394,5,FALSE)*2,"") ->  | I89: =IF(D89<>"",H89*Parametrit!$B$6,"") ->  | L89: =IF((J89*Parametrit!$B$4)+(K89*Parametrit!$B$5)=0,"",(J89*Parametrit!$B$4)+(K89*Parametrit!$B$5)) ->  | N89: =IF(A89<>"",I89+(J89*Parametrit!$B$4)+(K89*Parametrit!$B$5)+M89,"") -> 
C90: =IF(D90<>"",VLOOKUP(D90,Asiakkaat!$A$2:$E$244,2,FALSE),"") ->  | F90: =IF(D90<>"",VLOOKUP(D90,Asiakkaat!$A$2:$E$244,3,FALSE),"") ->  | G90: =IF(D90<>"",VLOOKUP(D90,Asiakkaat!$A$2:$E$100,4,FALSE),"") ->  | H90: =IF(D90<>"",VLOOKUP(D90,Asiakkaat!$A$2:$E$394,5,FALSE)*2,"") ->  | I90: =IF(D90<>"",H90*Parametrit!$B$6,"") ->  | L90: =IF((J90*Parametrit!$B$4)+(K90*Parametrit!$B$5)=0,"",(J90*Parametrit!$B$4)+(K90*Parametrit!$B$5)) ->  | N90: =IF(A90<>"",I90+(J90*Parametrit!$B$4)+(K90*Parametrit!$B$5)+M90,"") -> 
C91: =IF(D91<>"",VLOOKUP(D91,Asiakkaat!$A$2:$E$244,2,FALSE),"") ->  | F91: =IF(D91<>"",VLOOKUP(D91,Asiakkaat!$A$2:$E$244,3,FALSE),"") ->  | G91: =IF(D91<>"",VLOOKUP(D91,Asiakkaat!$A$2:$E$100,4,FALSE),"") ->  | H91: =IF(D91<>"",VLOOKUP(D91,Asiakkaat!$A$2:$E$394,5,FALSE)*2,"") ->  | I91: =IF(D91<>"",H91*Parametrit!$B$6,"") ->  | L91: =IF((J91*Parametrit!$B$4)+(K91*Parametrit!$B$5)=0,"",(J91*Parametrit!$B$4)+(K91*Parametrit!$B$5)) ->  | N91: =IF(A91<>"",I91+(J91*Parametrit!$B$4)+(K91*Parametrit!$B$5)+M91,"") -> 
C92: =IF(D92<>"",VLOOKUP(D92,Asiakkaat!$A$2:$E$244,2,FALSE),"") ->  | F92: =IF(D92<>"",VLOOKUP(D92,Asiakkaat!$A$2:$E$244,3,FALSE),"") ->  | G92: =IF(D92<>"",VLOOKUP(D92,Asiakkaat!$A$2:$E$100,4,FALSE),"") ->  | H92: =IF(D92<>"",VLOOKUP(D92,Asiakkaat!$A$2:$E$394,5,FALSE)*2,"") ->  | I92: =IF(D92<>"",H92*Parametrit!$B$6,"") ->  | L92: =IF((J92*Parametrit!$B$4)+(K92*Parametrit!$B$5)=0,"",(J92*Parametrit!$B$4)+(K92*Parametrit!$B$5)) ->  | N92: =IF(A92<>"",I92+(J92*Parametrit!$B$4)+(K92*Parametrit!$B$5)+M92,"") -> 
C93: =IF(D93<>"",VLOOKUP(D93,Asiakkaat!$A$2:$E$244,2,FALSE),"") ->  | F93: =IF(D93<>"",VLOOKUP(D93,Asiakkaat!$A$2:$E$244,3,FALSE),"") ->  | G93: =IF(D93<>"",VLOOKUP(D93,Asiakkaat!$A$2:$E$100,4,FALSE),"") ->  | H93: =IF(D93<>"",VLOOKUP(D93,Asiakkaat!$A$2:$E$394,5,FALSE)*2,"") ->  | I93: =IF(D93<>"",H93*Parametrit!$B$6,"") ->  | L93: =IF((J93*Parametrit!$B$4)+(K93*Parametrit!$B$5)=0,"",(J93*Parametrit!$B$4)+(K93*Parametrit!$B$5)) ->  | N93: =IF(A93<>"",I93+(J93*Parametrit!$B$4)+(K93*Parametrit!$B$5)+M93,"") -> 
C94: =IF(D94<>"",VLOOKUP(D94,Asiakkaat!$A$2:$E$244,2,FALSE),"") ->  | F94: =IF(D94<>"",VLOOKUP(D94,Asiakkaat!$A$2:$E$244,3,FALSE),"") ->  | G94: =IF(D94<>"",VLOOKUP(D94,Asiakkaat!$A$2:$E$100,4,FALSE),"") ->  | H94: =IF(D94<>"",VLOOKUP(D94,Asiakkaat!$A$2:$E$394,5,FALSE)*2,"") ->  | I94: =IF(D94<>"",H94*Parametrit!$B$6,"") ->  | L94: =IF((J94*Parametrit!$B$4)+(K94*Parametrit!$B$5)=0,"",(J94*Parametrit!$B$4)+(K94*Parametrit!$B$5)) ->  | N94: =IF(A94<>"",I94+(J94*Parametrit!$B$4)+(K94*Parametrit!$B$5)+M94,"") -> 
C95: =IF(D95<>"",VLOOKUP(D95,Asiakkaat!$A$2:$E$244,2,FALSE),"") ->  | F95: =IF(D95<>"",VLOOKUP(D95,Asiakkaat!$A$2:$E$244,3,FALSE),"") ->  | G95: =IF(D95<>"",VLOOKUP(D95,Asiakkaat!$A$2:$E$100,4,FALSE),"") ->  | H95: =IF(D95<>"",VLOOKUP(D95,Asiakkaat!$A$2:$E$394,5,FALSE)*2,"") ->  | I95: =IF(D95<>"",H95*Parametrit!$B$6,"") ->  | L95: =IF((J95*Parametrit!$B$4)+(K95*Parametrit!$B$5)=0,"",(J95*Parametrit!$B$4)+(K95*Parametrit!$B$5)) ->  | N95: =IF(A95<>"",I95+(J95*Parametrit!$B$4)+(K95*Parametrit!$B$5)+M95,"") -> 
C96: =IF(D96<>"",VLOOKUP(D96,Asiakkaat!$A$2:$E$244,2,FALSE),"") ->  | F96: =IF(D96<>"",VLOOKUP(D96,Asiakkaat!$A$2:$E$244,3,FALSE),"") ->  | G96: =IF(D96<>"",VLOOKUP(D96,Asiakkaat!$A$2:$E$100,4,FALSE),"") ->  | H96: =IF(D96<>"",VLOOKUP(D96,Asiakkaat!$A$2:$E$394,5,FALSE)*2,"") ->  | I96: =IF(D96<>"",H96*Parametrit!$B$6,"") ->  | L96: =IF((J96*Parametrit!$B$4)+(K96*Parametrit!$B$5)=0,"",(J96*Parametrit!$B$4)+(K96*Parametrit!$B$5)) ->  | N96: =IF(A96<>"",I96+(J96*Parametrit!$B$4)+(K96*Parametrit!$B$5)+M96,"") -> 
C97: =IF(D97<>"",VLOOKUP(D97,Asiakkaat!$A$2:$E$244,2,FALSE),"") ->  | F97: =IF(D97<>"",VLOOKUP(D97,Asiakkaat!$A$2:$E$244,3,FALSE),"") ->  | G97: =IF(D97<>"",VLOOKUP(D97,Asiakkaat!$A$2:$E$100,4,FALSE),"") ->  | H97: =IF(D97<>"",VLOOKUP(D97,Asiakkaat!$A$2:$E$394,5,FALSE)*2,"") ->  | I97: =IF(D97<>"",H97*Parametrit!$B$6,"") ->  | L97: =IF((J97*Parametrit!$B$4)+(K97*Parametrit!$B$5)=0,"",(J97*Parametrit!$B$4)+(K97*Parametrit!$B$5)) ->  | N97: =IF(A97<>"",I97+(J97*Parametrit!$B$4)+(K97*Parametrit!$B$5)+M97,"") -> 
C98: =IF(D98<>"",VLOOKUP(D98,Asiakkaat!$A$2:$E$244,2,FALSE),"") ->  | F98: =IF(D98<>"",VLOOKUP(D98,Asiakkaat!$A$2:$E$244,3,FALSE),"") ->  | G98: =IF(D98<>"",VLOOKUP(D98,Asiakkaat!$A$2:$E$100,4,FALSE),"") ->  | H98: =IF(D98<>"",VLOOKUP(D98,Asiakkaat!$A$2:$E$394,5,FALSE)*2,"") ->  | I98: =IF(D98<>"",H98*Parametrit!$B$6,"") ->  | L98: =IF((J98*Parametrit!$B$4)+(K98*Parametrit!$B$5)=0,"",(J98*Parametrit!$B$4)+(K98*Parametrit!$B$5)) ->  | N98: =IF(A98<>"",I98+(J98*Parametrit!$B$4)+(K98*Parametrit!$B$5)+M98,"") -> 
B99: =IF(A99<>"",IFERROR(WEEKDAY(A99),""),"") ->  | C99: =IF(D99<>"",VLOOKUP(D99,Asiakkaat!$A$2:$E$244,2,FALSE),"") ->  | F99: =IF(D99<>"",VLOOKUP(D99,Asiakkaat!$A$2:$E$244,3,FALSE),"") ->  | G99: =IF(D99<>"",VLOOKUP(D99,Asiakkaat!$A$2:$E$100,4,FALSE),"") ->  | H99: =IF(D99<>"",VLOOKUP(D99,Asiakkaat!$A$2:$E$394,5,FALSE)*2,"") ->  | I99: =IF(D99<>"",H99*Parametrit!$B$6,"") ->  | L99: =IF((J99*Parametrit!$B$4)+(K99*Parametrit!$B$5)=0,"",(J99*Parametrit!$B$4)+(K99*Parametrit!$B$5)) ->  | N99: =IF(A99<>"",I99+(J99*Parametrit!$B$4)+(K99*Parametrit!$B$5)+M99,"") -> 
C100: =IF(D100<>"",VLOOKUP(D100,Asiakkaat!$A$2:$E$244,2,FALSE),"") ->  | F100: =IF(D100<>"",VLOOKUP(D100,Asiakkaat!$A$2:$E$244,3,FALSE),"") ->  | G100: =IF(D100<>"",VLOOKUP(D100,Asiakkaat!$A$2:$E$100,4,FALSE),"") ->  | H100: =IF(D100<>"",VLOOKUP(D100,Asiakkaat!$A$2:$E$394,5,FALSE)*2,"") ->  | I100: =IF(D100<>"",H100*Parametrit!$B$6,"") ->  | L100: =IF((J100*Parametrit!$B$4)+(K100*Parametrit!$B$5)=0,"",(J100*Parametrit!$B$4)+(K100*Parametrit!$B$5)) ->  | N100: =IF(A100<>"",I100+(J100*Parametrit!$B$4)+(K100*Parametrit!$B$5)+M100,"") -> 
C101: =IF(D101<>"",VLOOKUP(D101,Asiakkaat!$A$2:$E$244,2,FALSE),"") ->  | F101: =IF(D101<>"",VLOOKUP(D101,Asiakkaat!$A$2:$E$244,3,FALSE),"") ->  | G101: =IF(D101<>"",VLOOKUP(D101,Asiakkaat!$A$2:$E$100,4,FALSE),"") ->  | H101: =IF(D101<>"",VLOOKUP(D101,Asiakkaat!$A$2:$E$394,5,FALSE)*2,"") ->  | I101: =IF(D101<>"",H101*Parametrit!$B$6,"") ->  | L101: =IF((J101*Parametrit!$B$4)+(K101*Parametrit!$B$5)=0,"",(J101*Parametrit!$B$4)+(K101*Parametrit!$B$5)) ->  | N101: =IF(A101<>"",I101+(J101*Parametrit!$B$4)+(K101*Parametrit!$B$5)+M101,"") -> 
C102: =IF(D102<>"",VLOOKUP(D102,Asiakkaat!$A$2:$E$244,2,FALSE),"") ->  | F102: =IF(D102<>"",VLOOKUP(D102,Asiakkaat!$A$2:$E$244,3,FALSE),"") ->  | G102: =IF(D102<>"",VLOOKUP(D102,Asiakkaat!$A$2:$E$100,4,FALSE),"") ->  | H102: =IF(D102<>"",VLOOKUP(D102,Asiakkaat!$A$2:$E$394,5,FALSE)*2,"") ->  | I102: =IF(D102<>"",H102*Parametrit!$B$6,"") ->  | L102: =IF((J102*Parametrit!$B$4)+(K102*Parametrit!$B$5)=0,"",(J102*Parametrit!$B$4)+(K102*Parametrit!$B$5)) ->  | N102: =IF(A102<>"",I102+(J102*Parametrit!$B$4)+(K102*Parametrit!$B$5)+M102,"") -> 
C103: =IF(D103<>"",VLOOKUP(D103,Asiakkaat!$A$2:$E$244,2,FALSE),"") ->  | F103: =IF(D103<>"",VLOOKUP(D103,Asiakkaat!$A$2:$E$244,3,FALSE),"") ->  | G103: =IF(D103<>"",VLOOKUP(D103,Asiakkaat!$A$2:$E$100,4,FALSE),"") ->  | H103: =IF(D103<>"",VLOOKUP(D103,Asiakkaat!$A$2:$E$394,5,FALSE)*2,"") ->  | I103: =IF(D103<>"",H103*Parametrit!$B$6,"") ->  | L103: =IF((J103*Parametrit!$B$4)+(K103*Parametrit!$B$5)=0,"",(J103*Parametrit!$B$4)+(K103*Parametrit!$B$5)) ->  | N103: =IF(A103<>"",I103+(J103*Parametrit!$B$4)+(K103*Parametrit!$B$5)+M103,"") -> 
C104: =IF(D104<>"",VLOOKUP(D104,Asiakkaat!$A$2:$E$244,2,FALSE),"") ->  | F104: =IF(D104<>"",VLOOKUP(D104,Asiakkaat!$A$2:$E$244,3,FALSE),"") ->  | G104: =IF(D104<>"",VLOOKUP(D104,Asiakkaat!$A$2:$E$100,4,FALSE),"") ->  | H104: =IF(D104<>"",VLOOKUP(D104,Asiakkaat!$A$2:$E$394,5,FALSE)*2,"") ->  | I104: =IF(D104<>"",H104*Parametrit!$B$6,"") ->  | L104: =IF((J104*Parametrit!$B$4)+(K104*Parametrit!$B$5)=0,"",(J104*Parametrit!$B$4)+(K104*Parametrit!$B$5)) ->  | N104: =IF(A104<>"",I104+(J104*Parametrit!$B$4)+(K104*Parametrit!$B$5)+M104,"") -> 
C105: =IF(D105<>"",VLOOKUP(D105,Asiakkaat!$A$2:$E$244,2,FALSE),"") ->  | F105: =IF(D105<>"",VLOOKUP(D105,Asiakkaat!$A$2:$E$244,3,FALSE),"") ->  | G105: =IF(D105<>"",VLOOKUP(D105,Asiakkaat!$A$2:$E$100,4,FALSE),"") ->  | H105: =IF(D105<>"",VLOOKUP(D105,Asiakkaat!$A$2:$E$394,5,FALSE)*2,"") ->  | I105: =IF(D105<>"",H105*Parametrit!$B$6,"") ->  | L105: =IF((J105*Parametrit!$B$4)+(K105*Parametrit!$B$5)=0,"",(J105*Parametrit!$B$4)+(K105*Parametrit!$B$5)) ->  | N105: =IF(A105<>"",I105+(J105*Parametrit!$B$4)+(K105*Parametrit!$B$5)+M105,"") -> 
C106: =IF(D106<>"",VLOOKUP(D106,Asiakkaat!$A$2:$E$244,2,FALSE),"") ->  | F106: =IF(D106<>"",VLOOKUP(D106,Asiakkaat!$A$2:$E$244,3,FALSE),"") ->  | G106: =IF(D106<>"",VLOOKUP(D106,Asiakkaat!$A$2:$E$100,4,FALSE),"") ->  | H106: =IF(D106<>"",VLOOKUP(D106,Asiakkaat!$A$2:$E$394,5,FALSE)*2,"") ->  | I106: =IF(D106<>"",H106*Parametrit!$B$6,"") ->  | L106: =IF((J106*Parametrit!$B$4)+(K106*Parametrit!$B$5)=0,"",(J106*Parametrit!$B$4)+(K106*Parametrit!$B$5)) ->  | N106: =IF(A106<>"",I106+(J106*Parametrit!$B$4)+(K106*Parametrit!$B$5)+M106,"") -> 
C107: =IF(D107<>"",VLOOKUP(D107,Asiakkaat!$A$2:$E$244,2,FALSE),"") ->  | F107: =IF(D107<>"",VLOOKUP(D107,Asiakkaat!$A$2:$E$244,3,FALSE),"") ->  | G107: =IF(D107<>"",VLOOKUP(D107,Asiakkaat!$A$2:$E$100,4,FALSE),"") ->  | H107: =IF(D107<>"",VLOOKUP(D107,Asiakkaat!$A$2:$E$394,5,FALSE)*2,"") ->  | I107: =IF(D107<>"",H107*Parametrit!$B$6,"") ->  | L107: =IF((J107*Parametrit!$B$4)+(K107*Parametrit!$B$5)=0,"",(J107*Parametrit!$B$4)+(K107*Parametrit!$B$5)) ->  | N107: =IF(A107<>"",I107+(J107*Parametrit!$B$4)+(K107*Parametrit!$B$5)+M107,"") -> 
C108: =IF(D108<>"",VLOOKUP(D108,Asiakkaat!$A$2:$E$244,2,FALSE),"") ->  | F108: =IF(D108<>"",VLOOKUP(D108,Asiakkaat!$A$2:$E$244,3,FALSE),"") ->  | G108: =IF(D108<>"",VLOOKUP(D108,Asiakkaat!$A$2:$E$100,4,FALSE),"") ->  | H108: =IF(D108<>"",VLOOKUP(D108,Asiakkaat!$A$2:$E$394,5,FALSE)*2,"") ->  | I108: =IF(D108<>"",H108*Parametrit!$B$6,"") ->  | L108: =IF((J108*Parametrit!$B$4)+(K108*Parametrit!$B$5)=0,"",(J108*Parametrit!$B$4)+(K108*Parametrit!$B$5)) ->  | N108: =IF(A108<>"",I108+(J108*Parametrit!$B$4)+(K108*Parametrit!$B$5)+M108,"") -> 
C109: =IF(D109<>"",VLOOKUP(D109,Asiakkaat!$A$2:$E$244,2,FALSE),"") ->  | F109: =IF(D109<>"",VLOOKUP(D109,Asiakkaat!$A$2:$E$244,3,FALSE),"") ->  | G109: =IF(D109<>"",VLOOKUP(D109,Asiakkaat!$A$2:$E$100,4,FALSE),"") ->  | H109: =IF(D109<>"",VLOOKUP(D109,Asiakkaat!$A$2:$E$394,5,FALSE)*2,"") ->  | I109: =IF(D109<>"",H109*Parametrit!$B$6,"") ->  | L109: =IF((J109*Parametrit!$B$4)+(K109*Parametrit!$B$5)=0,"",(J109*Parametrit!$B$4)+(K109*Parametrit!$B$5)) ->  | N109: =IF(A109<>"",I109+(J109*Parametrit!$B$4)+(K109*Parametrit!$B$5)+M109,"") -> 
C110: =IF(D110<>"",VLOOKUP(D110,Asiakkaat!$A$2:$E$244,2,FALSE),"") ->  | F110: =IF(D110<>"",VLOOKUP(D110,Asiakkaat!$A$2:$E$244,3,FALSE),"") ->  | G110: =IF(D110<>"",VLOOKUP(D110,Asiakkaat!$A$2:$E$100,4,FALSE),"") ->  | H110: =IF(D110<>"",VLOOKUP(D110,Asiakkaat!$A$2:$E$394,5,FALSE)*2,"") ->  | I110: =IF(D110<>"",H110*Parametrit!$B$6,"") ->  | L110: =IF((J110*Parametrit!$B$4)+(K110*Parametrit!$B$5)=0,"",(J110*Parametrit!$B$4)+(K110*Parametrit!$B$5)) ->  | N110: =IF(A110<>"",I110+(J110*Parametrit!$B$4)+(K110*Parametrit!$B$5)+M110,"") -> 
C111: =IF(D111<>"",VLOOKUP(D111,Asiakkaat!$A$2:$E$244,2,FALSE),"") ->  | F111: =IF(D111<>"",VLOOKUP(D111,Asiakkaat!$A$2:$E$244,3,FALSE),"") ->  | G111: =IF(D111<>"",VLOOKUP(D111,Asiakkaat!$A$2:$E$100,4,FALSE),"") ->  | H111: =IF(D111<>"",VLOOKUP(D111,Asiakkaat!$A$2:$E$394,5,FALSE)*2,"") ->  | I111: =IF(D111<>"",H111*Parametrit!$B$6,"") ->  | L111: =IF((J111*Parametrit!$B$4)+(K111*Parametrit!$B$5)=0,"",(J111*Parametrit!$B$4)+(K111*Parametrit!$B$5)) ->  | N111: =IF(A111<>"",I111+(J111*Parametrit!$B$4)+(K111*Parametrit!$B$5)+M111,"") -> 
C112: =IF(D112<>"",VLOOKUP(D112,Asiakkaat!$A$2:$E$244,2,FALSE),"") ->  | F112: =IF(D112<>"",VLOOKUP(D112,Asiakkaat!$A$2:$E$244,3,FALSE),"") ->  | G112: =IF(D112<>"",VLOOKUP(D112,Asiakkaat!$A$2:$E$100,4,FALSE),"") ->  | H112: =IF(D112<>"",VLOOKUP(D112,Asiakkaat!$A$2:$E$394,5,FALSE)*2,"") ->  | I112: =IF(D112<>"",H112*Parametrit!$B$6,"") ->  | L112: =IF((J112*Parametrit!$B$4)+(K112*Parametrit!$B$5)=0,"",(J112*Parametrit!$B$4)+(K112*Parametrit!$B$5)) ->  | N112: =IF(A112<>"",I112+(J112*Parametrit!$B$4)+(K112*Parametrit!$B$5)+M112,"") -> 
C113: =IF(D113<>"",VLOOKUP(D113,Asiakkaat!$A$2:$E$244,2,FALSE),"") ->  | F113: =IF(D113<>"",VLOOKUP(D113,Asiakkaat!$A$2:$E$244,3,FALSE),"") ->  | G113: =IF(D113<>"",VLOOKUP(D113,Asiakkaat!$A$2:$E$100,4,FALSE),"") ->  | H113: =IF(D113<>"",VLOOKUP(D113,Asiakkaat!$A$2:$E$394,5,FALSE)*2,"") ->  | I113: =IF(D113<>"",H113*Parametrit!$B$6,"") ->  | L113: =IF((J113*Parametrit!$B$4)+(K113*Parametrit!$B$5)=0,"",(J113*Parametrit!$B$4)+(K113*Parametrit!$B$5)) ->  | N113: =IF(A113<>"",I113+(J113*Parametrit!$B$4)+(K113*Parametrit!$B$5)+M113,"") -> 
C114: =IF(D114<>"",VLOOKUP(D114,Asiakkaat!$A$2:$E$244,2,FALSE),"") ->  | F114: =IF(D114<>"",VLOOKUP(D114,Asiakkaat!$A$2:$E$244,3,FALSE),"") ->  | G114: =IF(D114<>"",VLOOKUP(D114,Asiakkaat!$A$2:$E$100,4,FALSE),"") ->  | H114: =IF(D114<>"",VLOOKUP(D114,Asiakkaat!$A$2:$E$394,5,FALSE)*2,"") ->  | I114: =IF(D114<>"",H114*Parametrit!$B$6,"") ->  | L114: =IF((J114*Parametrit!$B$4)+(K114*Parametrit!$B$5)=0,"",(J114*Parametrit!$B$4)+(K114*Parametrit!$B$5)) ->  | N114: =IF(A114<>"",I114+(J114*Parametrit!$B$4)+(K114*Parametrit!$B$5)+M114,"") -> 
C115: =IF(D115<>"",VLOOKUP(D115,Asiakkaat!$A$2:$E$244,2,FALSE),"") ->  | F115: =IF(D115<>"",VLOOKUP(D115,Asiakkaat!$A$2:$E$244,3,FALSE),"") ->  | G115: =IF(D115<>"",VLOOKUP(D115,Asiakkaat!$A$2:$E$100,4,FALSE),"") ->  | H115: =IF(D115<>"",VLOOKUP(D115,Asiakkaat!$A$2:$E$394,5,FALSE)*2,"") ->  | I115: =IF(D115<>"",H115*Parametrit!$B$6,"") ->  | L115: =IF((J115*Parametrit!$B$4)+(K115*Parametrit!$B$5)=0,"",(J115*Parametrit!$B$4)+(K115*Parametrit!$B$5)) ->  | N115: =IF(A115<>"",I115+(J115*Parametrit!$B$4)+(K115*Parametrit!$B$5)+M115,"") -> 
C116: =IF(D116<>"",VLOOKUP(D116,Asiakkaat!$A$2:$E$244,2,FALSE),"") ->  | F116: =IF(D116<>"",VLOOKUP(D116,Asiakkaat!$A$2:$E$244,3,FALSE),"") ->  | G116: =IF(D116<>"",VLOOKUP(D116,Asiakkaat!$A$2:$E$100,4,FALSE),"") ->  | H116: =IF(D116<>"",VLOOKUP(D116,Asiakkaat!$A$2:$E$394,5,FALSE)*2,"") ->  | I116: =IF(D116<>"",H116*Parametrit!$B$6,"") ->  | L116: =IF((J116*Parametrit!$B$4)+(K116*Parametrit!$B$5)=0,"",(J116*Parametrit!$B$4)+(K116*Parametrit!$B$5)) ->  | N116: =IF(A116<>"",I116+(J116*Parametrit!$B$4)+(K116*Parametrit!$B$5)+M116,"") -> 
C117: =IF(D117<>"",VLOOKUP(D117,Asiakkaat!$A$2:$E$244,2,FALSE),"") ->  | F117: =IF(D117<>"",VLOOKUP(D117,Asiakkaat!$A$2:$E$244,3,FALSE),"") ->  | G117: =IF(D117<>"",VLOOKUP(D117,Asiakkaat!$A$2:$E$100,4,FALSE),"") ->  | H117: =IF(D117<>"",VLOOKUP(D117,Asiakkaat!$A$2:$E$394,5,FALSE)*2,"") ->  | I117: =IF(D117<>"",H117*Parametrit!$B$6,"") ->  | L117: =IF((J117*Parametrit!$B$4)+(K117*Parametrit!$B$5)=0,"",(J117*Parametrit!$B$4)+(K117*Parametrit!$B$5)) ->  | N117: =IF(A117<>"",I117+(J117*Parametrit!$B$4)+(K117*Parametrit!$B$5)+M117,"") -> 
C118: =IF(D118<>"",VLOOKUP(D118,Asiakkaat!$A$2:$E$244,2,FALSE),"") ->  | F118: =IF(D118<>"",VLOOKUP(D118,Asiakkaat!$A$2:$E$244,3,FALSE),"") ->  | G118: =IF(D118<>"",VLOOKUP(D118,Asiakkaat!$A$2:$E$100,4,FALSE),"") ->  | H118: =IF(D118<>"",VLOOKUP(D118,Asiakkaat!$A$2:$E$394,5,FALSE)*2,"") ->  | I118: =IF(D118<>"",H118*Parametrit!$B$6,"") ->  | L118: =IF((J118*Parametrit!$B$4)+(K118*Parametrit!$B$5)=0,"",(J118*Parametrit!$B$4)+(K118*Parametrit!$B$5)) ->  | N118: =IF(A118<>"",I118+(J118*Parametrit!$B$4)+(K118*Parametrit!$B$5)+M118,"") -> 
C119: =IF(D119<>"",VLOOKUP(D119,Asiakkaat!$A$2:$E$244,2,FALSE),"") ->  | F119: =IF(D119<>"",VLOOKUP(D119,Asiakkaat!$A$2:$E$244,3,FALSE),"") ->  | G119: =IF(D119<>"",VLOOKUP(D119,Asiakkaat!$A$2:$E$100,4,FALSE),"") ->  | H119: =IF(D119<>"",VLOOKUP(D119,Asiakkaat!$A$2:$E$394,5,FALSE)*2,"") ->  | I119: =IF(D119<>"",H119*Parametrit!$B$6,"") ->  | L119: =IF((J119*Parametrit!$B$4)+(K119*Parametrit!$B$5)=0,"",(J119*Parametrit!$B$4)+(K119*Parametrit!$B$5)) ->  | N119: =IF(A119<>"",I119+(J119*Parametrit!$B$4)+(K119*Parametrit!$B$5)+M119,"") -> 
C120: =IF(D120<>"",VLOOKUP(D120,Asiakkaat!$A$2:$E$244,2,FALSE),"") ->  | F120: =IF(D120<>"",VLOOKUP(D120,Asiakkaat!$A$2:$E$244,3,FALSE),"") ->  | G120: =IF(D120<>"",VLOOKUP(D120,Asiakkaat!$A$2:$E$100,4,FALSE),"") ->  | H120: =IF(D120<>"",VLOOKUP(D120,Asiakkaat!$A$2:$E$394,5,FALSE)*2,"") ->  | I120: =IF(D120<>"",H120*Parametrit!$B$6,"") ->  | L120: =IF((J120*Parametrit!$B$4)+(K120*Parametrit!$B$5)=0,"",(J120*Parametrit!$B$4)+(K120*Parametrit!$B$5)) ->  | N120: =IF(A120<>"",I120+(J120*Parametrit!$B$4)+(K120*Parametrit!$B$5)+M120,"") -> 
C121: =IF(D121<>"",VLOOKUP(D121,Asiakkaat!$A$2:$E$244,2,FALSE),"") ->  | F121: =IF(D121<>"",VLOOKUP(D121,Asiakkaat!$A$2:$E$244,3,FALSE),"") ->  | G121: =IF(D121<>"",VLOOKUP(D121,Asiakkaat!$A$2:$E$100,4,FALSE),"") ->  | H121: =IF(D121<>"",VLOOKUP(D121,Asiakkaat!$A$2:$E$394,5,FALSE)*2,"") ->  | I121: =IF(D121<>"",H121*Parametrit!$B$6,"") ->  | L121: =IF((J121*Parametrit!$B$4)+(K121*Parametrit!$B$5)=0,"",(J121*Parametrit!$B$4)+(K121*Parametrit!$B$5)) ->  | N121: =IF(A121<>"",I121+(J121*Parametrit!$B$4)+(K121*Parametrit!$B$5)+M121,"") -> 
C122: =IF(D122<>"",VLOOKUP(D122,Asiakkaat!$A$2:$E$244,2,FALSE),"") ->  | F122: =IF(D122<>"",VLOOKUP(D122,Asiakkaat!$A$2:$E$244,3,FALSE),"") ->  | G122: =IF(D122<>"",VLOOKUP(D122,Asiakkaat!$A$2:$E$100,4,FALSE),"") ->  | H122: =IF(D122<>"",VLOOKUP(D122,Asiakkaat!$A$2:$E$394,5,FALSE)*2,"") ->  | I122: =IF(D122<>"",H122*Parametrit!$B$6,"") ->  | L122: =IF((J122*Parametrit!$B$4)+(K122*Parametrit!$B$5)=0,"",(J122*Parametrit!$B$4)+(K122*Parametrit!$B$5)) ->  | N122: =IF(A122<>"",I122+(J122*Parametrit!$B$4)+(K122*Parametrit!$B$5)+M122,"") -> 
C123: =IF(D123<>"",VLOOKUP(D123,Asiakkaat!$A$2:$E$244,2,FALSE),"") ->  | F123: =IF(D123<>"",VLOOKUP(D123,Asiakkaat!$A$2:$E$244,3,FALSE),"") ->  | G123: =IF(D123<>"",VLOOKUP(D123,Asiakkaat!$A$2:$E$100,4,FALSE),"") ->  | H123: =IF(D123<>"",VLOOKUP(D123,Asiakkaat!$A$2:$E$394,5,FALSE)*2,"") ->  | I123: =IF(D123<>"",H123*Parametrit!$B$6,"") ->  | L123: =IF((J123*Parametrit!$B$4)+(K123*Parametrit!$B$5)=0,"",(J123*Parametrit!$B$4)+(K123*Parametrit!$B$5)) ->  | N123: =IF(A123<>"",I123+(J123*Parametrit!$B$4)+(K123*Parametrit!$B$5)+M123,"") -> 
C124: =IF(D124<>"",VLOOKUP(D124,Asiakkaat!$A$2:$E$244,2,FALSE),"") ->  | F124: =IF(D124<>"",VLOOKUP(D124,Asiakkaat!$A$2:$E$244,3,FALSE),"") ->  | G124: =IF(D124<>"",VLOOKUP(D124,Asiakkaat!$A$2:$E$100,4,FALSE),"") ->  | H124: =IF(D124<>"",VLOOKUP(D124,Asiakkaat!$A$2:$E$394,5,FALSE)*2,"") ->  | I124: =IF(D124<>"",H124*Parametrit!$B$6,"") ->  | L124: =IF((J124*Parametrit!$B$4)+(K124*Parametrit!$B$5)=0,"",(J124*Parametrit!$B$4)+(K124*Parametrit!$B$5)) ->  | N124: =IF(A124<>"",I124+(J124*Parametrit!$B$4)+(K124*Parametrit!$B$5)+M124,"") -> 
C125: =IF(D125<>"",VLOOKUP(D125,Asiakkaat!$A$2:$E$244,2,FALSE),"") ->  | F125: =IF(D125<>"",VLOOKUP(D125,Asiakkaat!$A$2:$E$244,3,FALSE),"") ->  | G125: =IF(D125<>"",VLOOKUP(D125,Asiakkaat!$A$2:$E$100,4,FALSE),"") ->  | H125: =IF(D125<>"",VLOOKUP(D125,Asiakkaat!$A$2:$E$394,5,FALSE)*2,"") ->  | I125: =IF(D125<>"",H125*Parametrit!$B$6,"") ->  | L125: =IF((J125*Parametrit!$B$4)+(K125*Parametrit!$B$5)=0,"",(J125*Parametrit!$B$4)+(K125*Parametrit!$B$5)) ->  | N125: =IF(A125<>"",I125+(J125*Parametrit!$B$4)+(K125*Parametrit!$B$5)+M125,"") -> 
C126: =IF(D126<>"",VLOOKUP(D126,Asiakkaat!$A$2:$E$244,2,FALSE),"") ->  | F126: =IF(D126<>"",VLOOKUP(D126,Asiakkaat!$A$2:$E$244,3,FALSE),"") ->  | G126: =IF(D126<>"",VLOOKUP(D126,Asiakkaat!$A$2:$E$100,4,FALSE),"") ->  | H126: =IF(D126<>"",VLOOKUP(D126,Asiakkaat!$A$2:$E$394,5,FALSE)*2,"") ->  | I126: =IF(D126<>"",H126*Parametrit!$B$6,"") ->  | L126: =IF((J126*Parametrit!$B$4)+(K126*Parametrit!$B$5)=0,"",(J126*Parametrit!$B$4)+(K126*Parametrit!$B$5)) ->  | N126: =IF(A126<>"",I126+(J126*Parametrit!$B$4)+(K126*Parametrit!$B$5)+M126,"") -> 
C127: =IF(D127<>"",VLOOKUP(D127,Asiakkaat!$A$2:$E$244,2,FALSE),"") ->  | F127: =IF(D127<>"",VLOOKUP(D127,Asiakkaat!$A$2:$E$244,3,FALSE),"") ->  | G127: =IF(D127<>"",VLOOKUP(D127,Asiakkaat!$A$2:$E$100,4,FALSE),"") ->  | H127: =IF(D127<>"",VLOOKUP(D127,Asiakkaat!$A$2:$E$394,5,FALSE)*2,"") ->  | I127: =IF(D127<>"",H127*Parametrit!$B$6,"") ->  | L127: =IF((J127*Parametrit!$B$4)+(K127*Parametrit!$B$5)=0,"",(J127*Parametrit!$B$4)+(K127*Parametrit!$B$5)) ->  | N127: =IF(A127<>"",I127+(J127*Parametrit!$B$4)+(K127*Parametrit!$B$5)+M127,"") -> 
C128: =IF(D128<>"",VLOOKUP(D128,Asiakkaat!$A$2:$E$244,2,FALSE),"") ->  | F128: =IF(D128<>"",VLOOKUP(D128,Asiakkaat!$A$2:$E$244,3,FALSE),"") ->  | G128: =IF(D128<>"",VLOOKUP(D128,Asiakkaat!$A$2:$E$100,4,FALSE),"") ->  | H128: =IF(D128<>"",VLOOKUP(D128,Asiakkaat!$A$2:$E$394,5,FALSE)*2,"") ->  | I128: =IF(D128<>"",H128*Parametrit!$B$6,"") ->  | L128: =IF((J128*Parametrit!$B$4)+(K128*Parametrit!$B$5)=0,"",(J128*Parametrit!$B$4)+(K128*Parametrit!$B$5)) ->  | N128: =IF(A128<>"",I128+(J128*Parametrit!$B$4)+(K128*Parametrit!$B$5)+M128,"") -> 
B129: =IF(A129<>"",IFERROR(WEEKDAY(A129),""),"") ->  | C129: =IF(D129<>"",VLOOKUP(D129,Asiakkaat!$A$2:$E$244,2,FALSE),"") ->  | F129: =IF(D129<>"",VLOOKUP(D129,Asiakkaat!$A$2:$E$244,3,FALSE),"") ->  | G129: =IF(D129<>"",VLOOKUP(D129,Asiakkaat!$A$2:$E$100,4,FALSE),"") ->  | H129: =IF(D129<>"",VLOOKUP(D129,Asiakkaat!$A$2:$E$394,5,FALSE)*2,"") ->  | I129: =IF(D129<>"",H129*Parametrit!$B$6,"") ->  | L129: =IF((J129*Parametrit!$B$4)+(K129*Parametrit!$B$5)=0,"",(J129*Parametrit!$B$4)+(K129*Parametrit!$B$5)) ->  | N129: =IF(A129<>"",I129+(J129*Parametrit!$B$4)+(K129*Parametrit!$B$5)+M129,"") -> 
C130: =IF(D130<>"",VLOOKUP(D130,Asiakkaat!$A$2:$E$244,2,FALSE),"") ->  | F130: =IF(D130<>"",VLOOKUP(D130,Asiakkaat!$A$2:$E$244,3,FALSE),"") ->  | G130: =IF(D130<>"",VLOOKUP(D130,Asiakkaat!$A$2:$E$100,4,FALSE),"") ->  | H130: =IF(D130<>"",VLOOKUP(D130,Asiakkaat!$A$2:$E$394,5,FALSE)*2,"") ->  | I130: =IF(D130<>"",H130*Parametrit!$B$6,"") ->  | L130: =IF((J130*Parametrit!$B$4)+(K130*Parametrit!$B$5)=0,"",(J130*Parametrit!$B$4)+(K130*Parametrit!$B$5)) ->  | N130: =IF(A130<>"",I130+(J130*Parametrit!$B$4)+(K130*Parametrit!$B$5)+M130,"") -> 
C131: =IF(D131<>"",VLOOKUP(D131,Asiakkaat!$A$2:$E$244,2,FALSE),"") ->  | F131: =IF(D131<>"",VLOOKUP(D131,Asiakkaat!$A$2:$E$244,3,FALSE),"") ->  | G131: =IF(D131<>"",VLOOKUP(D131,Asiakkaat!$A$2:$E$100,4,FALSE),"") ->  | H131: =IF(D131<>"",VLOOKUP(D131,Asiakkaat!$A$2:$E$394,5,FALSE)*2,"") ->  | I131: =IF(D131<>"",H131*Parametrit!$B$6,"") ->  | L131: =IF((J131*Parametrit!$B$4)+(K131*Parametrit!$B$5)=0,"",(J131*Parametrit!$B$4)+(K131*Parametrit!$B$5)) ->  | N131: =IF(A131<>"",I131+(J131*Parametrit!$B$4)+(K131*Parametrit!$B$5)+M131,"") -> 
C132: =IF(D132<>"",VLOOKUP(D132,Asiakkaat!$A$2:$E$244,2,FALSE),"") ->  | F132: =IF(D132<>"",VLOOKUP(D132,Asiakkaat!$A$2:$E$244,3,FALSE),"") ->  | G132: =IF(D132<>"",VLOOKUP(D132,Asiakkaat!$A$2:$E$100,4,FALSE),"") ->  | H132: =IF(D132<>"",VLOOKUP(D132,Asiakkaat!$A$2:$E$394,5,FALSE)*2,"") ->  | I132: =IF(D132<>"",H132*Parametrit!$B$6,"") ->  | L132: =IF((J132*Parametrit!$B$4)+(K132*Parametrit!$B$5)=0,"",(J132*Parametrit!$B$4)+(K132*Parametrit!$B$5)) ->  | N132: =IF(A132<>"",I132+(J132*Parametrit!$B$4)+(K132*Parametrit!$B$5)+M132,"") -> 
C133: =IF(D133<>"",VLOOKUP(D133,Asiakkaat!$A$2:$E$244,2,FALSE),"") ->  | F133: =IF(D133<>"",VLOOKUP(D133,Asiakkaat!$A$2:$E$244,3,FALSE),"") ->  | G133: =IF(D133<>"",VLOOKUP(D133,Asiakkaat!$A$2:$E$100,4,FALSE),"") ->  | H133: =IF(D133<>"",VLOOKUP(D133,Asiakkaat!$A$2:$E$394,5,FALSE)*2,"") ->  | I133: =IF(D133<>"",H133*Parametrit!$B$6,"") ->  | L133: =IF((J133*Parametrit!$B$4)+(K133*Parametrit!$B$5)=0,"",(J133*Parametrit!$B$4)+(K133*Parametrit!$B$5)) ->  | N133: =IF(A133<>"",I133+(J133*Parametrit!$B$4)+(K133*Parametrit!$B$5)+M133,"") -> 
C134: =IF(D134<>"",VLOOKUP(D134,Asiakkaat!$A$2:$E$244,2,FALSE),"") ->  | F134: =IF(D134<>"",VLOOKUP(D134,Asiakkaat!$A$2:$E$244,3,FALSE),"") ->  | G134: =IF(D134<>"",VLOOKUP(D134,Asiakkaat!$A$2:$E$100,4,FALSE),"") ->  | H134: =IF(D134<>"",VLOOKUP(D134,Asiakkaat!$A$2:$E$394,5,FALSE)*2,"") ->  | I134: =IF(D134<>"",H134*Parametrit!$B$6,"") ->  | L134: =IF((J134*Parametrit!$B$4)+(K134*Parametrit!$B$5)=0,"",(J134*Parametrit!$B$4)+(K134*Parametrit!$B$5)) ->  | N134: =IF(A134<>"",I134+(J134*Parametrit!$B$4)+(K134*Parametrit!$B$5)+M134,"") -> 
B135: =IF(A135<>"",IFERROR(WEEKDAY(A135),""),"") ->  | C135: =IF(D135<>"",VLOOKUP(D135,Asiakkaat!$A$2:$E$244,2,FALSE),"") ->  | F135: =IF(D135<>"",VLOOKUP(D135,Asiakkaat!$A$2:$E$244,3,FALSE),"") ->  | G135: =IF(D135<>"",VLOOKUP(D135,Asiakkaat!$A$2:$E$100,4,FALSE),"") ->  | H135: =IF(D135<>"",VLOOKUP(D135,Asiakkaat!$A$2:$E$394,5,FALSE)*2,"") ->  | I135: =IF(D135<>"",H135*Parametrit!$B$6,"") ->  | L135: =IF((J135*Parametrit!$B$4)+(K135*Parametrit!$B$5)=0,"",(J135*Parametrit!$B$4)+(K135*Parametrit!$B$5)) ->  | N135: =IF(A135<>"",I135+(J135*Parametrit!$B$4)+(K135*Parametrit!$B$5)+M135,"") -> 
C136: =IF(D136<>"",VLOOKUP(D136,Asiakkaat!$A$2:$E$244,2,FALSE),"") ->  | F136: =IF(D136<>"",VLOOKUP(D136,Asiakkaat!$A$2:$E$244,3,FALSE),"") ->  | G136: =IF(D136<>"",VLOOKUP(D136,Asiakkaat!$A$2:$E$100,4,FALSE),"") ->  | H136: =IF(D136<>"",VLOOKUP(D136,Asiakkaat!$A$2:$E$394,5,FALSE)*2,"") ->  | I136: =IF(D136<>"",H136*Parametrit!$B$6,"") ->  | L136: =IF((J136*Parametrit!$B$4)+(K136*Parametrit!$B$5)=0,"",(J136*Parametrit!$B$4)+(K136*Parametrit!$B$5)) ->  | N136: =IF(A136<>"",I136+(J136*Parametrit!$B$4)+(K136*Parametrit!$B$5)+M136,"") -> 
C137: =IF(D137<>"",VLOOKUP(D137,Asiakkaat!$A$2:$E$244,2,FALSE),"") ->  | F137: =IF(D137<>"",VLOOKUP(D137,Asiakkaat!$A$2:$E$244,3,FALSE),"") ->  | G137: =IF(D137<>"",VLOOKUP(D137,Asiakkaat!$A$2:$E$100,4,FALSE),"") ->  | H137: =IF(D137<>"",VLOOKUP(D137,Asiakkaat!$A$2:$E$394,5,FALSE)*2,"") ->  | I137: =IF(D137<>"",H137*Parametrit!$B$6,"") ->  | L137: =IF((J137*Parametrit!$B$4)+(K137*Parametrit!$B$5)=0,"",(J137*Parametrit!$B$4)+(K137*Parametrit!$B$5)) ->  | N137: =IF(A137<>"",I137+(J137*Parametrit!$B$4)+(K137*Parametrit!$B$5)+M137,"") -> 
C138: =IF(D138<>"",VLOOKUP(D138,Asiakkaat!$A$2:$E$244,2,FALSE),"") ->  | F138: =IF(D138<>"",VLOOKUP(D138,Asiakkaat!$A$2:$E$244,3,FALSE),"") ->  | G138: =IF(D138<>"",VLOOKUP(D138,Asiakkaat!$A$2:$E$100,4,FALSE),"") ->  | H138: =IF(D138<>"",VLOOKUP(D138,Asiakkaat!$A$2:$E$394,5,FALSE)*2,"") ->  | I138: =IF(D138<>"",H138*Parametrit!$B$6,"") ->  | L138: =IF((J138*Parametrit!$B$4)+(K138*Parametrit!$B$5)=0,"",(J138*Parametrit!$B$4)+(K138*Parametrit!$B$5)) ->  | N138: =IF(A138<>"",I138+(J138*Parametrit!$B$4)+(K138*Parametrit!$B$5)+M138,"") -> 
C139: =IF(D139<>"",VLOOKUP(D139,Asiakkaat!$A$2:$E$244,2,FALSE),"") ->  | F139: =IF(D139<>"",VLOOKUP(D139,Asiakkaat!$A$2:$E$244,3,FALSE),"") ->  | G139: =IF(D139<>"",VLOOKUP(D139,Asiakkaat!$A$2:$E$100,4,FALSE),"") ->  | H139: =IF(D139<>"",VLOOKUP(D139,Asiakkaat!$A$2:$E$394,5,FALSE)*2,"") ->  | I139: =IF(D139<>"",H139*Parametrit!$B$6,"") ->  | L139: =IF((J139*Parametrit!$B$4)+(K139*Parametrit!$B$5)=0,"",(J139*Parametrit!$B$4)+(K139*Parametrit!$B$5)) ->  | N139: =IF(A139<>"",I139+(J139*Parametrit!$B$4)+(K139*Parametrit!$B$5)+M139,"") -> 
C140: =IF(D140<>"",VLOOKUP(D140,Asiakkaat!$A$2:$E$244,2,FALSE),"") ->  | F140: =IF(D140<>"",VLOOKUP(D140,Asiakkaat!$A$2:$E$244,3,FALSE),"") ->  | G140: =IF(D140<>"",VLOOKUP(D140,Asiakkaat!$A$2:$E$100,4,FALSE),"") ->  | H140: =IF(D140<>"",VLOOKUP(D140,Asiakkaat!$A$2:$E$394,5,FALSE)*2,"") ->  | I140: =IF(D140<>"",H140*Parametrit!$B$6,"") ->  | L140: =IF((J140*Parametrit!$B$4)+(K140*Parametrit!$B$5)=0,"",(J140*Parametrit!$B$4)+(K140*Parametrit!$B$5)) ->  | N140: =IF(A140<>"",I140+(J140*Parametrit!$B$4)+(K140*Parametrit!$B$5)+M140,"") -> 
C141: =IF(D141<>"",VLOOKUP(D141,Asiakkaat!$A$2:$E$244,2,FALSE),"") ->  | F141: =IF(D141<>"",VLOOKUP(D141,Asiakkaat!$A$2:$E$244,3,FALSE),"") ->  | G141: =IF(D141<>"",VLOOKUP(D141,Asiakkaat!$A$2:$E$100,4,FALSE),"") ->  | H141: =IF(D141<>"",VLOOKUP(D141,Asiakkaat!$A$2:$E$394,5,FALSE)*2,"") ->  | I141: =IF(D141<>"",H141*Parametrit!$B$6,"") ->  | L141: =IF((J141*Parametrit!$B$4)+(K141*Parametrit!$B$5)=0,"",(J141*Parametrit!$B$4)+(K141*Parametrit!$B$5)) ->  | N141: =IF(A141<>"",I141+(J141*Parametrit!$B$4)+(K141*Parametrit!$B$5)+M141,"") -> 
C142: =IF(D142<>"",VLOOKUP(D142,Asiakkaat!$A$2:$E$244,2,FALSE),"") ->  | F142: =IF(D142<>"",VLOOKUP(D142,Asiakkaat!$A$2:$E$244,3,FALSE),"") ->  | G142: =IF(D142<>"",VLOOKUP(D142,Asiakkaat!$A$2:$E$100,4,FALSE),"") ->  | H142: =IF(D142<>"",VLOOKUP(D142,Asiakkaat!$A$2:$E$394,5,FALSE)*2,"") ->  | I142: =IF(D142<>"",H142*Parametrit!$B$6,"") ->  | L142: =IF((J142*Parametrit!$B$4)+(K142*Parametrit!$B$5)=0,"",(J142*Parametrit!$B$4)+(K142*Parametrit!$B$5)) ->  | N142: =IF(A142<>"",I142+(J142*Parametrit!$B$4)+(K142*Parametrit!$B$5)+M142,"") -> 
C143: =IF(D143<>"",VLOOKUP(D143,Asiakkaat!$A$2:$E$244,2,FALSE),"") ->  | F143: =IF(D143<>"",VLOOKUP(D143,Asiakkaat!$A$2:$E$244,3,FALSE),"") ->  | G143: =IF(D143<>"",VLOOKUP(D143,Asiakkaat!$A$2:$E$100,4,FALSE),"") ->  | H143: =IF(D143<>"",VLOOKUP(D143,Asiakkaat!$A$2:$E$394,5,FALSE)*2,"") ->  | I143: =IF(D143<>"",H143*Parametrit!$B$6,"") ->  | L143: =IF((J143*Parametrit!$B$4)+(K143*Parametrit!$B$5)=0,"",(J143*Parametrit!$B$4)+(K143*Parametrit!$B$5)) ->  | N143: =IF(A143<>"",I143+(J143*Parametrit!$B$4)+(K143*Parametrit!$B$5)+M143,"") -> 
C144: =IF(D144<>"",VLOOKUP(D144,Asiakkaat!$A$2:$E$244,2,FALSE),"") ->  | F144: =IF(D144<>"",VLOOKUP(D144,Asiakkaat!$A$2:$E$244,3,FALSE),"") ->  | G144: =IF(D144<>"",VLOOKUP(D144,Asiakkaat!$A$2:$E$100,4,FALSE),"") ->  | H144: =IF(D144<>"",VLOOKUP(D144,Asiakkaat!$A$2:$E$394,5,FALSE)*2,"") ->  | I144: =IF(D144<>"",H144*Parametrit!$B$6,"") ->  | L144: =IF((J144*Parametrit!$B$4)+(K144*Parametrit!$B$5)=0,"",(J144*Parametrit!$B$4)+(K144*Parametrit!$B$5)) ->  | N144: =IF(A144<>"",I144+(J144*Parametrit!$B$4)+(K144*Parametrit!$B$5)+M144,"") -> 
C145: =IF(D145<>"",VLOOKUP(D145,Asiakkaat!$A$2:$E$244,2,FALSE),"") ->  | F145: =IF(D145<>"",VLOOKUP(D145,Asiakkaat!$A$2:$E$244,3,FALSE),"") ->  | G145: =IF(D145<>"",VLOOKUP(D145,Asiakkaat!$A$2:$E$100,4,FALSE),"") ->  | H145: =IF(D145<>"",VLOOKUP(D145,Asiakkaat!$A$2:$E$394,5,FALSE)*2,"") ->  | I145: =IF(D145<>"",H145*Parametrit!$B$6,"") ->  | L145: =IF((J145*Parametrit!$B$4)+(K145*Parametrit!$B$5)=0,"",(J145*Parametrit!$B$4)+(K145*Parametrit!$B$5)) ->  | N145: =IF(A145<>"",I145+(J145*Parametrit!$B$4)+(K145*Parametrit!$B$5)+M145,"") -> 
C146: =IF(D146<>"",VLOOKUP(D146,Asiakkaat!$A$2:$E$244,2,FALSE),"") ->  | F146: =IF(D146<>"",VLOOKUP(D146,Asiakkaat!$A$2:$E$244,3,FALSE),"") ->  | G146: =IF(D146<>"",VLOOKUP(D146,Asiakkaat!$A$2:$E$100,4,FALSE),"") ->  | H146: =IF(D146<>"",VLOOKUP(D146,Asiakkaat!$A$2:$E$394,5,FALSE)*2,"") ->  | I146: =IF(D146<>"",H146*Parametrit!$B$6,"") ->  | L146: =IF((J146*Parametrit!$B$4)+(K146*Parametrit!$B$5)=0,"",(J146*Parametrit!$B$4)+(K146*Parametrit!$B$5)) ->  | N146: =IF(A146<>"",I146+(J146*Parametrit!$B$4)+(K146*Parametrit!$B$5)+M146,"") -> 
C147: =IF(D147<>"",VLOOKUP(D147,Asiakkaat!$A$2:$E$244,2,FALSE),"") ->  | F147: =IF(D147<>"",VLOOKUP(D147,Asiakkaat!$A$2:$E$244,3,FALSE),"") ->  | G147: =IF(D147<>"",VLOOKUP(D147,Asiakkaat!$A$2:$E$100,4,FALSE),"") ->  | H147: =IF(D147<>"",VLOOKUP(D147,Asiakkaat!$A$2:$E$394,5,FALSE)*2,"") ->  | I147: =IF(D147<>"",H147*Parametrit!$B$6,"") ->  | L147: =IF((J147*Parametrit!$B$4)+(K147*Parametrit!$B$5)=0,"",(J147*Parametrit!$B$4)+(K147*Parametrit!$B$5)) ->  | N147: =IF(A147<>"",I147+(J147*Parametrit!$B$4)+(K147*Parametrit!$B$5)+M147,"") -> 
C148: =IF(D148<>"",VLOOKUP(D148,Asiakkaat!$A$2:$E$244,2,FALSE),"") ->  | F148: =IF(D148<>"",VLOOKUP(D148,Asiakkaat!$A$2:$E$244,3,FALSE),"") ->  | G148: =IF(D148<>"",VLOOKUP(D148,Asiakkaat!$A$2:$E$100,4,FALSE),"") ->  | H148: =IF(D148<>"",VLOOKUP(D148,Asiakkaat!$A$2:$E$394,5,FALSE)*2,"") ->  | I148: =IF(D148<>"",H148*Parametrit!$B$6,"") ->  | L148: =IF((J148*Parametrit!$B$4)+(K148*Parametrit!$B$5)=0,"",(J148*Parametrit!$B$4)+(K148*Parametrit!$B$5)) ->  | N148: =IF(A148<>"",I148+(J148*Parametrit!$B$4)+(K148*Parametrit!$B$5)+M148,"") -> 
C149: =IF(D149<>"",VLOOKUP(D149,Asiakkaat!$A$2:$E$244,2,FALSE),"") ->  | F149: =IF(D149<>"",VLOOKUP(D149,Asiakkaat!$A$2:$E$244,3,FALSE),"") ->  | G149: =IF(D149<>"",VLOOKUP(D149,Asiakkaat!$A$2:$E$100,4,FALSE),"") ->  | H149: =IF(D149<>"",VLOOKUP(D149,Asiakkaat!$A$2:$E$394,5,FALSE)*2,"") ->  | I149: =IF(D149<>"",H149*Parametrit!$B$6,"") ->  | L149: =IF((J149*Parametrit!$B$4)+(K149*Parametrit!$B$5)=0,"",(J149*Parametrit!$B$4)+(K149*Parametrit!$B$5)) ->  | N149: =IF(A149<>"",I149+(J149*Parametrit!$B$4)+(K149*Parametrit!$B$5)+M149,"") -> 
C150: =IF(D150<>"",VLOOKUP(D150,Asiakkaat!$A$2:$E$244,2,FALSE),"") ->  | F150: =IF(D150<>"",VLOOKUP(D150,Asiakkaat!$A$2:$E$244,3,FALSE),"") ->  | G150: =IF(D150<>"",VLOOKUP(D150,Asiakkaat!$A$2:$E$100,4,FALSE),"") ->  | H150: =IF(D150<>"",VLOOKUP(D150,Asiakkaat!$A$2:$E$394,5,FALSE)*2,"") ->  | I150: =IF(D150<>"",H150*Parametrit!$B$6,"") ->  | L150: =IF((J150*Parametrit!$B$4)+(K150*Parametrit!$B$5)=0,"",(J150*Parametrit!$B$4)+(K150*Parametrit!$B$5)) ->  | N150: =IF(A150<>"",I150+(J150*Parametrit!$B$4)+(K150*Parametrit!$B$5)+M150,"") -> 
C151: =IF(D151<>"",VLOOKUP(D151,Asiakkaat!$A$2:$E$244,2,FALSE),"") ->  | F151: =IF(D151<>"",VLOOKUP(D151,Asiakkaat!$A$2:$E$244,3,FALSE),"") ->  | G151: =IF(D151<>"",VLOOKUP(D151,Asiakkaat!$A$2:$E$100,4,FALSE),"") ->  | H151: =IF(D151<>"",VLOOKUP(D151,Asiakkaat!$A$2:$E$394,5,FALSE)*2,"") ->  | I151: =IF(D151<>"",H151*Parametrit!$B$6,"") ->  | L151: =IF((J151*Parametrit!$B$4)+(K151*Parametrit!$B$5)=0,"",(J151*Parametrit!$B$4)+(K151*Parametrit!$B$5)) ->  | N151: =IF(A151<>"",I151+(J151*Parametrit!$B$4)+(K151*Parametrit!$B$5)+M151,"") -> 
C152: =IF(D152<>"",VLOOKUP(D152,Asiakkaat!$A$2:$E$244,2,FALSE),"") ->  | F152: =IF(D152<>"",VLOOKUP(D152,Asiakkaat!$A$2:$E$244,3,FALSE),"") ->  | G152: =IF(D152<>"",VLOOKUP(D152,Asiakkaat!$A$2:$E$100,4,FALSE),"") ->  | H152: =IF(D152<>"",VLOOKUP(D152,Asiakkaat!$A$2:$E$394,5,FALSE)*2,"") ->  | I152: =IF(D152<>"",H152*Parametrit!$B$6,"") ->  | L152: =IF((J152*Parametrit!$B$4)+(K152*Parametrit!$B$5)=0,"",(J152*Parametrit!$B$4)+(K152*Parametrit!$B$5)) ->  | N152: =IF(A152<>"",I152+(J152*Parametrit!$B$4)+(K152*Parametrit!$B$5)+M152,"") -> 
C153: =IF(D153<>"",VLOOKUP(D153,Asiakkaat!$A$2:$E$244,2,FALSE),"") ->  | F153: =IF(D153<>"",VLOOKUP(D153,Asiakkaat!$A$2:$E$244,3,FALSE),"") ->  | G153: =IF(D153<>"",VLOOKUP(D153,Asiakkaat!$A$2:$E$100,4,FALSE),"") ->  | H153: =IF(D153<>"",VLOOKUP(D153,Asiakkaat!$A$2:$E$394,5,FALSE)*2,"") ->  | I153: =IF(D153<>"",H153*Parametrit!$B$6,"") ->  | L153: =IF((J153*Parametrit!$B$4)+(K153*Parametrit!$B$5)=0,"",(J153*Parametrit!$B$4)+(K153*Parametrit!$B$5)) ->  | N153: =IF(A153<>"",I153+(J153*Parametrit!$B$4)+(K153*Parametrit!$B$5)+M153,"") -> 
B155: =IF(A155<>"",WEEKDAY(A155),"") ->  | F155: =IF(A155<>"",VLOOKUP(D155,Asiakkaat!$A$2:$E$244,2,FALSE),"") ->  | H155: km | I155: KM€ | J155: ½pv | K155: 1pv | L155: PV€ | M155: Muu€ | N155: YHT€
B156: =IF(A156<>"",WEEKDAY(A156),"") ->  | F156: =IF(A156<>"",VLOOKUP(D156,Asiakkaat!$A$2:$E$244,2,FALSE),"") ->  | G156: Yht. | H156: =SUM(H3:H153) -> 774.92 | I156: =SUM(I3:I153) -> 333.2156 | J156: 1 | K156: 4 | L156: 192 | M156: 0 | N156: 525.2156
B157: =IF(A157<>"",WEEKDAY(A157),"") ->  | I157: =IF(A157<>"",H157*#REF!,"") ->  | N157: =IF(A157<>"",I157+(J157*16)+(K157*35),"") -> 
B158: =IF(A158<>"",WEEKDAY(A158),"") ->  | I158: =IF(A158<>"",H158*#REF!,"") ->  | N158: =IF(A158<>"",I158+(J158*16)+(K158*35),"") -> 
B159: =IF(A159<>"",WEEKDAY(A159),"") ->  | I159: =IF(A159<>"",H159*#REF!,"") ->  | N159: =IF(A159<>"",I159+(J159*16)+(K159*35),"") -> 
